{"text_format":"3","workbook":"xlsx","n_sheets":3,"sheets":["Podaci plana","Agilni plan","Osnovni podaci"],"not_rendered":{"defined_names":5},"read":"whole","date_system":"1900"}

{"sheet":"Podaci plana","index":0,"n_rows":13,"n_cols":7,"rows_kept":13,"merged":[[12,1,12,4]]}
["Napravite agilni plan tako što ćete uneti važne kontrolne tačke ili aktivnosti u tabelu „Podaci plana“ u ovom radnom listu.\nNaslov ovog radnog lista nalazi se u ćeliji B1. \nInformacije o tome kako da koristite ovaj radni list, uključujući uputstva za čitače ekrana nalazi se u radnom listu „Osnovni podaci“.\nNastavite da se krećete niz kolonu A za dodatna uputstva.","Podaci agilne vremenske ose"]
["Zaglavlja tabele se nalaze u ćelijama od B2 do E2. Koristite filtere za naslove da biste sortirali tabelu i pronašli određene stavke\nAgilni plan najbolje funkcioniše kada je tabela sortirana rastućim redosledom po prioritetu, za kojim idu kontrolna tačka ili aktivnost.\nUzorak podataka se azi u tabeli „Podaci plana“ u ćelijama od B3 do E12. \nKad se kontrolna tačka ili aktivnost završe, ažurirajte odgovarajuće polje „Rezultat“ da biste prikazali rezultate u radnom listu „Agilni plan“. Unesite „Bez promena“ da biste markirali ključne tačke bez uticaja.\nIdite u ćeliju A13 da biste videli sledeće uputstvo.\n","Cilj","Kontrolna tačka ili aktivnost","Prioritet","Rezultat",null,"<-- sortirajte tabelu po prioritetu i kontrolnoj tački ili aktivnosti rastućim redosledom"]
[null,"Trenutno","Aktivnost 1\nPravljenje prototipa","1 – Visok",null,null,"<-- dodajte rezultat za svaku dovršenu kontrolnu tačku Unesite „Bez promena“ da biste markirali ključne tačke bez uticaja."]
[null,"Blizu termina","Aktivnost 2\nDemonstracija prototipa","1 – Visok"]
[null,"Trenutno","Aktivnost 6","1 – Visok"]
[null,"Buduće","Aktivnost 7\nSpoljni razvoj za primenu prve faze","1 – Visok"]
[null,"Dovršeno","Aktivnost 9\nPrva faza je odobrena","1 – Visok","Smanjivanje za 10%"]
[null,"Buduće","Aktivnost 10","2 – Srednji"]
[null,"Blizu termina","Aktivnost 8","2 – Srednji"]
[null,"Dovršeno","Aktivnost 3","3 – Nizak","Bez promena"]
[null,"Buduće","Aktivnost 4","3 – Nizak"]
[null,"Trenutno","Aktivnost 5","3 – Nizak"]
["Dodajte nove stavke tako što ćete umetnuti nove redove u tabelu iznad ove linije.\nOvo je poslednje uputstvo u ovom radnom listu.","Dodajte nove stavke tako što ćete umetnuti nove redove iznad ove linije"]

{"sheet":"Agilni plan","index":1,"n_rows":100,"n_cols":8,"rows_kept":100}
["Agilni plan koji prikazuje kontrolne tačke i aktivnosti iz radnog lista „Podaci plana“ nalazi se u ovom radnom listu. \nNaslov je u ćeliji B1. \nRezultati koje sadrže frazu „Bez promena“ istaknuti su svetlonarandžastom, rgb (255, 230, 210).\nDovršene kontrolne tačke ili aktivnosti su istaknute svetlozelenom, rgb (237,251,219).","Agilni plan"]
["Naslovi grafikona su u ćelijama B2, D2, F2 i H2. U njima se navodi: Dovršeno, Trenutno, Blizu termina i Buduće. Izmenite ove naslove da biste promenili vrednosti za izbor cilja u tabeli „Podaci plana“ u radnom listu „Podaci plana“.\nĆelije od B3 do H20 sadrže kontrolne tačke i aktivnosti za naslove u ovom redu. \nKontrolne tačke i aktivnosti se kreiraju u radnom listu „Podaci plana“.\nNEMOJTE da izmenite ili izbrišete unose u ovom radnom listu. Ažurirajte tabelu „Podaci plana“ u radnom listu „Podaci plana“ da biste ažurirali sadržaj u ovom radnom listu.\nOvo je poslednje uputstvo u ovom radnom listu.","Dovršeno",null,"Trenutno",null,"Blizu termina",null,"Buduće"]
[null,{"$f":"IFERROR(INDEX(Aktivnost,SMALL(IF(Cilj=$B$2,ROW(Aktivnost)-MIN(ROW(Aktivnost))+1),ROWS($B$3:B3)))&\" \"&CHAR(10)&(INDEX(Rezultat,SMALL(IF(Cilj=$B$2,ROW(Rezultat)-MIN(ROW(Rezultat))+1),ROWS($B$3:B3))))&CHAR(10),\"\")","v":"Aktivnost 9\nPrva faza je odobrena \nSmanjivanje za 10%\n"},null,{"$f":"IFERROR(INDEX(Aktivnost,SMALL(IF(Cilj=$D$2,ROW(Aktivnost)-MIN(ROW(Aktivnost))+1),ROWS($B$3:B3)))&CHAR(10),\"\")","v":"Aktivnost 1\nPravljenje prototipa\n"},null,{"$f":"IFERROR(INDEX(Aktivnost,SMALL(IF(Cilj=$F$2,ROW(Aktivnost)-MIN(ROW(Aktivnost))+1),ROWS($B$3:B3)))&CHAR(10),\"\")","v":"Aktivnost 2\nDemonstracija prototipa\n"},null,{"$f":"IFERROR(INDEX(Aktivnost,SMALL(IF(Cilj=$H$2,ROW(Aktivnost)-MIN(ROW(Aktivnost))+1),ROWS($B$3:B3)))&CHAR(10),\"\")","v":"Aktivnost 7\nSpoljni razvoj za primenu prve faze\n"}]
[null,{"$f":"IFERROR(INDEX(Aktivnost,SMALL(IF(Cilj=$B$2,ROW(Aktivnost)-MIN(ROW(Aktivnost))+1),ROWS($B$3:B4)))&\" \"&CHAR(10)&(INDEX(Rezultat,SMALL(IF(Cilj=$B$2,ROW(Rezultat)-MIN(ROW(Rezultat))+1),ROWS($B$3:B4))))&CHAR(10),\"\")","v":"Aktivnost 3 \nBez promena\n"},null,{"$f":"IFERROR(INDEX(Aktivnost,SMALL(IF(Cilj=$D$2,ROW(Aktivnost)-MIN(ROW(Aktivnost))+1),ROWS($B$3:B4)))&CHAR(10),\"\")","v":"Aktivnost 6\n"},null,{"$f":"IFERROR(INDEX(Aktivnost,SMALL(IF(Cilj=$F$2,ROW(Aktivnost)-MIN(ROW(Aktivnost))+1),ROWS($B$3:B4)))&CHAR(10),\"\")","v":"Aktivnost 8\n"},null,{"$f":"IFERROR(INDEX(Aktivnost,SMALL(IF(Cilj=$H$2,ROW(Aktivnost)-MIN(ROW(Aktivnost))+1),ROWS($B$3:B4)))&CHAR(10),\"\")","v":"Aktivnost 10\n"}]
[null,{"$f":"IFERROR(INDEX(Aktivnost,SMALL(IF(Cilj=$B$2,ROW(Aktivnost)-MIN(ROW(Aktivnost))+1),ROWS($B$3:B5)))&\" \"&CHAR(10)&(INDEX(Rezultat,SMALL(IF(Cilj=$B$2,ROW(Rezultat)-MIN(ROW(Rezultat))+1),ROWS($B$3:B5))))&CHAR(10),\"\")","v":""},null,{"$f":"IFERROR(INDEX(Aktivnost,SMALL(IF(Cilj=$D$2,ROW(Aktivnost)-MIN(ROW(Aktivnost))+1),ROWS($B$3:B5)))&CHAR(10),\"\")","v":"Aktivnost 5\n"},null,{"$f":"IFERROR(INDEX(Aktivnost,SMALL(IF(Cilj=$F$2,ROW(Aktivnost)-MIN(ROW(Aktivnost))+1),ROWS($B$3:B5)))&CHAR(10),\"\")","v":""},null,{"$f":"IFERROR(INDEX(Aktivnost,SMALL(IF(Cilj=$H$2,ROW(Aktivnost)-MIN(ROW(Aktivnost))+1),ROWS($B$3:B5)))&CHAR(10),\"\")","v":"Aktivnost 4\n"}]
[null,{"$f":"IFERROR(INDEX(Aktivnost,SMALL(IF(Cilj=$B$2,ROW(Aktivnost)-MIN(ROW(Aktivnost))+1),ROWS($B$3:B6)))&\" \"&CHAR(10)&(INDEX(Rezultat,SMALL(IF(Cilj=$B$2,ROW(Rezultat)-MIN(ROW(Rezultat))+1),ROWS($B$3:B6))))&CHAR(10),\"\")","v":""},null,{"$f":"IFERROR(INDEX(Aktivnost,SMALL(IF(Cilj=$D$2,ROW(Aktivnost)-MIN(ROW(Aktivnost))+1),ROWS($B$3:B6)))&CHAR(10),\"\")","v":""},null,{"$f":"IFERROR(INDEX(Aktivnost,SMALL(IF(Cilj=$F$2,ROW(Aktivnost)-MIN(ROW(Aktivnost))+1),ROWS($B$3:B6)))&CHAR(10),\"\")","v":""},null,{"$f":"IFERROR(INDEX(Aktivnost,SMALL(IF(Cilj=$H$2,ROW(Aktivnost)-MIN(ROW(Aktivnost))+1),ROWS($B$3:B6)))&CHAR(10),\"\")","v":""}]
[null,{"$f":"IFERROR(INDEX(Aktivnost,SMALL(IF(Cilj=$B$2,ROW(Aktivnost)-MIN(ROW(Aktivnost))+1),ROWS($B$3:B7)))&\" \"&CHAR(10)&(INDEX(Rezultat,SMALL(IF(Cilj=$B$2,ROW(Rezultat)-MIN(ROW(Rezultat))+1),ROWS($B$3:B7))))&CHAR(10),\"\")","v":""},null,{"$f":"IFERROR(INDEX(Aktivnost,SMALL(IF(Cilj=$D$2,ROW(Aktivnost)-MIN(ROW(Aktivnost))+1),ROWS($B$3:B7)))&CHAR(10),\"\")","v":""},null,{"$f":"IFERROR(INDEX(Aktivnost,SMALL(IF(Cilj=$F$2,ROW(Aktivnost)-MIN(ROW(Aktivnost))+1),ROWS($B$3:B7)))&CHAR(10),\"\")","v":""},null,{"$f":"IFERROR(INDEX(Aktivnost,SMALL(IF(Cilj=$H$2,ROW(Aktivnost)-MIN(ROW(Aktivnost))+1),ROWS($B$3:B7)))&CHAR(10),\"\")","v":""}]
[null,{"$f":"IFERROR(INDEX(Aktivnost,SMALL(IF(Cilj=$B$2,ROW(Aktivnost)-MIN(ROW(Aktivnost))+1),ROWS($B$3:B8)))&\" \"&CHAR(10)&(INDEX(Rezultat,SMALL(IF(Cilj=$B$2,ROW(Rezultat)-MIN(ROW(Rezultat))+1),ROWS($B$3:B8))))&CHAR(10),\"\")","v":""},null,{"$f":"IFERROR(INDEX(Aktivnost,SMALL(IF(Cilj=$D$2,ROW(Aktivnost)-MIN(ROW(Aktivnost))+1),ROWS($B$3:B8)))&CHAR(10),\"\")","v":""},null,{"$f":"IFERROR(INDEX(Aktivnost,SMALL(IF(Cilj=$F$2,ROW(Aktivnost)-MIN(ROW(Aktivnost))+1),ROWS($B$3:B8)))&CHAR(10),\"\")","v":""},null,{"$f":"IFERROR(INDEX(Aktivnost,SMALL(IF(Cilj=$H$2,ROW(Aktivnost)-MIN(ROW(Aktivnost))+1),ROWS($B$3:B8)))&CHAR(10),\"\")","v":""}]
[null,{"$f":"IFERROR(INDEX(Aktivnost,SMALL(IF(Cilj=$B$2,ROW(Aktivnost)-MIN(ROW(Aktivnost))+1),ROWS($B$3:B9)))&\" \"&CHAR(10)&(INDEX(Rezultat,SMALL(IF(Cilj=$B$2,ROW(Rezultat)-MIN(ROW(Rezultat))+1),ROWS($B$3:B9))))&CHAR(10),\"\")","v":""},null,{"$f":"IFERROR(INDEX(Aktivnost,SMALL(IF(Cilj=$D$2,ROW(Aktivnost)-MIN(ROW(Aktivnost))+1),ROWS($B$3:B9)))&CHAR(10),\"\")","v":""},null,{"$f":"IFERROR(INDEX(Aktivnost,SMALL(IF(Cilj=$F$2,ROW(Aktivnost)-MIN(ROW(Aktivnost))+1),ROWS($B$3:B9)))&CHAR(10),\"\")","v":""},null,{"$f":"IFERROR(INDEX(Aktivnost,SMALL(IF(Cilj=$H$2,ROW(Aktivnost)-MIN(ROW(Aktivnost))+1),ROWS($B$3:B9)))&CHAR(10),\"\")","v":""}]
[null,{"$f":"IFERROR(INDEX(Aktivnost,SMALL(IF(Cilj=$B$2,ROW(Aktivnost)-MIN(ROW(Aktivnost))+1),ROWS($B$3:B10)))&\" \"&CHAR(10)&(INDEX(Rezultat,SMALL(IF(Cilj=$B$2,ROW(Rezultat)-MIN(ROW(Rezultat))+1),ROWS($B$3:B10))))&CHAR(10),\"\")","v":""},null,{"$f":"IFERROR(INDEX(Aktivnost,SMALL(IF(Cilj=$D$2,ROW(Aktivnost)-MIN(ROW(Aktivnost))+1),ROWS($B$3:B10)))&CHAR(10),\"\")","v":""},null,{"$f":"IFERROR(INDEX(Aktivnost,SMALL(IF(Cilj=$F$2,ROW(Aktivnost)-MIN(ROW(Aktivnost))+1),ROWS($B$3:B10)))&CHAR(10),\"\")","v":""},null,{"$f":"IFERROR(INDEX(Aktivnost,SMALL(IF(Cilj=$H$2,ROW(Aktivnost)-MIN(ROW(Aktivnost))+1),ROWS($B$3:B10)))&CHAR(10),\"\")","v":""}]
[null,{"$f":"IFERROR(INDEX(Aktivnost,SMALL(IF(Cilj=$B$2,ROW(Aktivnost)-MIN(ROW(Aktivnost))+1),ROWS($B$3:B11)))&\" \"&CHAR(10)&(INDEX(Rezultat,SMALL(IF(Cilj=$B$2,ROW(Rezultat)-MIN(ROW(Rezultat))+1),ROWS($B$3:B11))))&CHAR(10),\"\")","v":""},null,{"$f":"IFERROR(INDEX(Aktivnost,SMALL(IF(Cilj=$D$2,ROW(Aktivnost)-MIN(ROW(Aktivnost))+1),ROWS($B$3:B11)))&CHAR(10),\"\")","v":""},null,{"$f":"IFERROR(INDEX(Aktivnost,SMALL(IF(Cilj=$F$2,ROW(Aktivnost)-MIN(ROW(Aktivnost))+1),ROWS($B$3:B11)))&CHAR(10),\"\")","v":""},null,{"$f":"IFERROR(INDEX(Aktivnost,SMALL(IF(Cilj=$H$2,ROW(Aktivnost)-MIN(ROW(Aktivnost))+1),ROWS($B$3:B11)))&CHAR(10),\"\")","v":""}]
[null,{"$f":"IFERROR(INDEX(Aktivnost,SMALL(IF(Cilj=$B$2,ROW(Aktivnost)-MIN(ROW(Aktivnost))+1),ROWS($B$3:B12)))&\" \"&CHAR(10)&(INDEX(Rezultat,SMALL(IF(Cilj=$B$2,ROW(Rezultat)-MIN(ROW(Rezultat))+1),ROWS($B$3:B12))))&CHAR(10),\"\")","v":""},null,{"$f":"IFERROR(INDEX(Aktivnost,SMALL(IF(Cilj=$D$2,ROW(Aktivnost)-MIN(ROW(Aktivnost))+1),ROWS($B$3:B12)))&CHAR(10),\"\")","v":""},null,{"$f":"IFERROR(INDEX(Aktivnost,SMALL(IF(Cilj=$F$2,ROW(Aktivnost)-MIN(ROW(Aktivnost))+1),ROWS($B$3:B12)))&CHAR(10),\"\")","v":""},null,{"$f":"IFERROR(INDEX(Aktivnost,SMALL(IF(Cilj=$H$2,ROW(Aktivnost)-MIN(ROW(Aktivnost))+1),ROWS($B$3:B12)))&CHAR(10),\"\")","v":""}]
[null,{"$f":"IFERROR(INDEX(Aktivnost,SMALL(IF(Cilj=$B$2,ROW(Aktivnost)-MIN(ROW(Aktivnost))+1),ROWS($B$3:B13)))&\" \"&CHAR(10)&(INDEX(Rezultat,SMALL(IF(Cilj=$B$2,ROW(Rezultat)-MIN(ROW(Rezultat))+1),ROWS($B$3:B13))))&CHAR(10),\"\")","v":""},null,{"$f":"IFERROR(INDEX(Aktivnost,SMALL(IF(Cilj=$D$2,ROW(Aktivnost)-MIN(ROW(Aktivnost))+1),ROWS($B$3:B13)))&CHAR(10),\"\")","v":""},null,{"$f":"IFERROR(INDEX(Aktivnost,SMALL(IF(Cilj=$F$2,ROW(Aktivnost)-MIN(ROW(Aktivnost))+1),ROWS($B$3:B13)))&CHAR(10),\"\")","v":""},null,{"$f":"IFERROR(INDEX(Aktivnost,SMALL(IF(Cilj=$H$2,ROW(Aktivnost)-MIN(ROW(Aktivnost))+1),ROWS($B$3:B13)))&CHAR(10),\"\")","v":""}]
[null,{"$f":"IFERROR(INDEX(Aktivnost,SMALL(IF(Cilj=$B$2,ROW(Aktivnost)-MIN(ROW(Aktivnost))+1),ROWS($B$3:B14)))&\" \"&CHAR(10)&(INDEX(Rezultat,SMALL(IF(Cilj=$B$2,ROW(Rezultat)-MIN(ROW(Rezultat))+1),ROWS($B$3:B14))))&CHAR(10),\"\")","v":""},null,{"$f":"IFERROR(INDEX(Aktivnost,SMALL(IF(Cilj=$D$2,ROW(Aktivnost)-MIN(ROW(Aktivnost))+1),ROWS($B$3:B14)))&CHAR(10),\"\")","v":""},null,{"$f":"IFERROR(INDEX(Aktivnost,SMALL(IF(Cilj=$F$2,ROW(Aktivnost)-MIN(ROW(Aktivnost))+1),ROWS($B$3:B14)))&CHAR(10),\"\")","v":""},null,{"$f":"IFERROR(INDEX(Aktivnost,SMALL(IF(Cilj=$H$2,ROW(Aktivnost)-MIN(ROW(Aktivnost))+1),ROWS($B$3:B14)))&CHAR(10),\"\")","v":""}]
[null,{"$f":"IFERROR(INDEX(Aktivnost,SMALL(IF(Cilj=$B$2,ROW(Aktivnost)-MIN(ROW(Aktivnost))+1),ROWS($B$3:B15)))&\" \"&CHAR(10)&(INDEX(Rezultat,SMALL(IF(Cilj=$B$2,ROW(Rezultat)-MIN(ROW(Rezultat))+1),ROWS($B$3:B15))))&CHAR(10),\"\")","v":""},null,{"$f":"IFERROR(INDEX(Aktivnost,SMALL(IF(Cilj=$D$2,ROW(Aktivnost)-MIN(ROW(Aktivnost))+1),ROWS($B$3:B15)))&CHAR(10),\"\")","v":""},null,{"$f":"IFERROR(INDEX(Aktivnost,SMALL(IF(Cilj=$F$2,ROW(Aktivnost)-MIN(ROW(Aktivnost))+1),ROWS($B$3:B15)))&CHAR(10),\"\")","v":""},null,{"$f":"IFERROR(INDEX(Aktivnost,SMALL(IF(Cilj=$H$2,ROW(Aktivnost)-MIN(ROW(Aktivnost))+1),ROWS($B$3:B15)))&CHAR(10),\"\")","v":""}]
[null,{"$f":"IFERROR(INDEX(Aktivnost,SMALL(IF(Cilj=$B$2,ROW(Aktivnost)-MIN(ROW(Aktivnost))+1),ROWS($B$3:B16)))&\" \"&CHAR(10)&(INDEX(Rezultat,SMALL(IF(Cilj=$B$2,ROW(Rezultat)-MIN(ROW(Rezultat))+1),ROWS($B$3:B16))))&CHAR(10),\"\")","v":""},null,{"$f":"IFERROR(INDEX(Aktivnost,SMALL(IF(Cilj=$D$2,ROW(Aktivnost)-MIN(ROW(Aktivnost))+1),ROWS($B$3:B16)))&CHAR(10),\"\")","v":""},null,{"$f":"IFERROR(INDEX(Aktivnost,SMALL(IF(Cilj=$F$2,ROW(Aktivnost)-MIN(ROW(Aktivnost))+1),ROWS($B$3:B16)))&CHAR(10),\"\")","v":""},null,{"$f":"IFERROR(INDEX(Aktivnost,SMALL(IF(Cilj=$H$2,ROW(Aktivnost)-MIN(ROW(Aktivnost))+1),ROWS($B$3:B16)))&CHAR(10),\"\")","v":""}]
[null,{"$f":"IFERROR(INDEX(Aktivnost,SMALL(IF(Cilj=$B$2,ROW(Aktivnost)-MIN(ROW(Aktivnost))+1),ROWS($B$3:B17)))&\" \"&CHAR(10)&(INDEX(Rezultat,SMALL(IF(Cilj=$B$2,ROW(Rezultat)-MIN(ROW(Rezultat))+1),ROWS($B$3:B17))))&CHAR(10),\"\")","v":""},null,{"$f":"IFERROR(INDEX(Aktivnost,SMALL(IF(Cilj=$D$2,ROW(Aktivnost)-MIN(ROW(Aktivnost))+1),ROWS($B$3:B17)))&CHAR(10),\"\")","v":""},null,{"$f":"IFERROR(INDEX(Aktivnost,SMALL(IF(Cilj=$F$2,ROW(Aktivnost)-MIN(ROW(Aktivnost))+1),ROWS($B$3:B17)))&CHAR(10),\"\")","v":""},null,{"$f":"IFERROR(INDEX(Aktivnost,SMALL(IF(Cilj=$H$2,ROW(Aktivnost)-MIN(ROW(Aktivnost))+1),ROWS($B$3:B17)))&CHAR(10),\"\")","v":""}]
[null,{"$f":"IFERROR(INDEX(Aktivnost,SMALL(IF(Cilj=$B$2,ROW(Aktivnost)-MIN(ROW(Aktivnost))+1),ROWS($B$3:B18)))&\" \"&CHAR(10)&(INDEX(Rezultat,SMALL(IF(Cilj=$B$2,ROW(Rezultat)-MIN(ROW(Rezultat))+1),ROWS($B$3:B18))))&CHAR(10),\"\")","v":""},null,{"$f":"IFERROR(INDEX(Aktivnost,SMALL(IF(Cilj=$D$2,ROW(Aktivnost)-MIN(ROW(Aktivnost))+1),ROWS($B$3:B18)))&CHAR(10),\"\")","v":""},null,{"$f":"IFERROR(INDEX(Aktivnost,SMALL(IF(Cilj=$F$2,ROW(Aktivnost)-MIN(ROW(Aktivnost))+1),ROWS($B$3:B18)))&CHAR(10),\"\")","v":""},null,{"$f":"IFERROR(INDEX(Aktivnost,SMALL(IF(Cilj=$H$2,ROW(Aktivnost)-MIN(ROW(Aktivnost))+1),ROWS($B$3:B18)))&CHAR(10),\"\")","v":""}]
[null,{"$f":"IFERROR(INDEX(Aktivnost,SMALL(IF(Cilj=$B$2,ROW(Aktivnost)-MIN(ROW(Aktivnost))+1),ROWS($B$3:B19)))&\" \"&CHAR(10)&(INDEX(Rezultat,SMALL(IF(Cilj=$B$2,ROW(Rezultat)-MIN(ROW(Rezultat))+1),ROWS($B$3:B19))))&CHAR(10),\"\")","v":""},null,{"$f":"IFERROR(INDEX(Aktivnost,SMALL(IF(Cilj=$D$2,ROW(Aktivnost)-MIN(ROW(Aktivnost))+1),ROWS($B$3:B19)))&CHAR(10),\"\")","v":""},null,{"$f":"IFERROR(INDEX(Aktivnost,SMALL(IF(Cilj=$F$2,ROW(Aktivnost)-MIN(ROW(Aktivnost))+1),ROWS($B$3:B19)))&CHAR(10),\"\")","v":""},null,{"$f":"IFERROR(INDEX(Aktivnost,SMALL(IF(Cilj=$H$2,ROW(Aktivnost)-MIN(ROW(Aktivnost))+1),ROWS($B$3:B19)))&CHAR(10),\"\")","v":""}]
[null,{"$f":"IFERROR(INDEX(Aktivnost,SMALL(IF(Cilj=$B$2,ROW(Aktivnost)-MIN(ROW(Aktivnost))+1),ROWS($B$3:B20)))&\" \"&CHAR(10)&(INDEX(Rezultat,SMALL(IF(Cilj=$B$2,ROW(Rezultat)-MIN(ROW(Rezultat))+1),ROWS($B$3:B20))))&CHAR(10),\"\")","v":""},null,{"$f":"IFERROR(INDEX(Aktivnost,SMALL(IF(Cilj=$D$2,ROW(Aktivnost)-MIN(ROW(Aktivnost))+1),ROWS($B$3:B20)))&CHAR(10),\"\")","v":""},null,{"$f":"IFERROR(INDEX(Aktivnost,SMALL(IF(Cilj=$F$2,ROW(Aktivnost)-MIN(ROW(Aktivnost))+1),ROWS($B$3:B20)))&CHAR(10),\"\")","v":""},null,{"$f":"IFERROR(INDEX(Aktivnost,SMALL(IF(Cilj=$H$2,ROW(Aktivnost)-MIN(ROW(Aktivnost))+1),ROWS($B$3:B20)))&CHAR(10),\"\")","v":""}]
[null,{"$f":"IFERROR(INDEX(Aktivnost,SMALL(IF(Cilj=$B$2,ROW(Aktivnost)-MIN(ROW(Aktivnost))+1),ROWS($B$3:B21)))&\" \"&CHAR(10)&(INDEX(Rezultat,SMALL(IF(Cilj=$B$2,ROW(Rezultat)-MIN(ROW(Rezultat))+1),ROWS($B$3:B21))))&CHAR(10),\"\")","v":""},null,{"$f":"IFERROR(INDEX(Aktivnost,SMALL(IF(Cilj=$D$2,ROW(Aktivnost)-MIN(ROW(Aktivnost))+1),ROWS($B$3:B21)))&CHAR(10),\"\")","v":""},null,{"$f":"IFERROR(INDEX(Aktivnost,SMALL(IF(Cilj=$F$2,ROW(Aktivnost)-MIN(ROW(Aktivnost))+1),ROWS($B$3:B21)))&CHAR(10),\"\")","v":""},null,{"$f":"IFERROR(INDEX(Aktivnost,SMALL(IF(Cilj=$H$2,ROW(Aktivnost)-MIN(ROW(Aktivnost))+1),ROWS($B$3:B21)))&CHAR(10),\"\")","v":""}]
[null,{"$f":"IFERROR(INDEX(Aktivnost,SMALL(IF(Cilj=$B$2,ROW(Aktivnost)-MIN(ROW(Aktivnost))+1),ROWS($B$3:B22)))&\" \"&CHAR(10)&(INDEX(Rezultat,SMALL(IF(Cilj=$B$2,ROW(Rezultat)-MIN(ROW(Rezultat))+1),ROWS($B$3:B22))))&CHAR(10),\"\")","v":""},null,{"$f":"IFERROR(INDEX(Aktivnost,SMALL(IF(Cilj=$D$2,ROW(Aktivnost)-MIN(ROW(Aktivnost))+1),ROWS($B$3:B22)))&CHAR(10),\"\")","v":""},null,{"$f":"IFERROR(INDEX(Aktivnost,SMALL(IF(Cilj=$F$2,ROW(Aktivnost)-MIN(ROW(Aktivnost))+1),ROWS($B$3:B22)))&CHAR(10),\"\")","v":""},null,{"$f":"IFERROR(INDEX(Aktivnost,SMALL(IF(Cilj=$H$2,ROW(Aktivnost)-MIN(ROW(Aktivnost))+1),ROWS($B$3:B22)))&CHAR(10),\"\")","v":""}]
[null,{"$f":"IFERROR(INDEX(Aktivnost,SMALL(IF(Cilj=$B$2,ROW(Aktivnost)-MIN(ROW(Aktivnost))+1),ROWS($B$3:B23)))&\" \"&CHAR(10)&(INDEX(Rezultat,SMALL(IF(Cilj=$B$2,ROW(Rezultat)-MIN(ROW(Rezultat))+1),ROWS($B$3:B23))))&CHAR(10),\"\")","v":""},null,{"$f":"IFERROR(INDEX(Aktivnost,SMALL(IF(Cilj=$D$2,ROW(Aktivnost)-MIN(ROW(Aktivnost))+1),ROWS($B$3:B23)))&CHAR(10),\"\")","v":""},null,{"$f":"IFERROR(INDEX(Aktivnost,SMALL(IF(Cilj=$F$2,ROW(Aktivnost)-MIN(ROW(Aktivnost))+1),ROWS($B$3:B23)))&CHAR(10),\"\")","v":""},null,{"$f":"IFERROR(INDEX(Aktivnost,SMALL(IF(Cilj=$H$2,ROW(Aktivnost)-MIN(ROW(Aktivnost))+1),ROWS($B$3:B23)))&CHAR(10),\"\")","v":""}]
[null,{"$f":"IFERROR(INDEX(Aktivnost,SMALL(IF(Cilj=$B$2,ROW(Aktivnost)-MIN(ROW(Aktivnost))+1),ROWS($B$3:B24)))&\" \"&CHAR(10)&(INDEX(Rezultat,SMALL(IF(Cilj=$B$2,ROW(Rezultat)-MIN(ROW(Rezultat))+1),ROWS($B$3:B24))))&CHAR(10),\"\")","v":""},null,{"$f":"IFERROR(INDEX(Aktivnost,SMALL(IF(Cilj=$D$2,ROW(Aktivnost)-MIN(ROW(Aktivnost))+1),ROWS($B$3:B24)))&CHAR(10),\"\")","v":""},null,{"$f":"IFERROR(INDEX(Aktivnost,SMALL(IF(Cilj=$F$2,ROW(Aktivnost)-MIN(ROW(Aktivnost))+1),ROWS($B$3:B24)))&CHAR(10),\"\")","v":""},null,{"$f":"IFERROR(INDEX(Aktivnost,SMALL(IF(Cilj=$H$2,ROW(Aktivnost)-MIN(ROW(Aktivnost))+1),ROWS($B$3:B24)))&CHAR(10),\"\")","v":""}]
[null,{"$f":"IFERROR(INDEX(Aktivnost,SMALL(IF(Cilj=$B$2,ROW(Aktivnost)-MIN(ROW(Aktivnost))+1),ROWS($B$3:B25)))&\" \"&CHAR(10)&(INDEX(Rezultat,SMALL(IF(Cilj=$B$2,ROW(Rezultat)-MIN(ROW(Rezultat))+1),ROWS($B$3:B25))))&CHAR(10),\"\")","v":""},null,{"$f":"IFERROR(INDEX(Aktivnost,SMALL(IF(Cilj=$D$2,ROW(Aktivnost)-MIN(ROW(Aktivnost))+1),ROWS($B$3:B25)))&CHAR(10),\"\")","v":""},null,{"$f":"IFERROR(INDEX(Aktivnost,SMALL(IF(Cilj=$F$2,ROW(Aktivnost)-MIN(ROW(Aktivnost))+1),ROWS($B$3:B25)))&CHAR(10),\"\")","v":""},null,{"$f":"IFERROR(INDEX(Aktivnost,SMALL(IF(Cilj=$H$2,ROW(Aktivnost)-MIN(ROW(Aktivnost))+1),ROWS($B$3:B25)))&CHAR(10),\"\")","v":""}]
[null,{"$f":"IFERROR(INDEX(Aktivnost,SMALL(IF(Cilj=$B$2,ROW(Aktivnost)-MIN(ROW(Aktivnost))+1),ROWS($B$3:B26)))&\" \"&CHAR(10)&(INDEX(Rezultat,SMALL(IF(Cilj=$B$2,ROW(Rezultat)-MIN(ROW(Rezultat))+1),ROWS($B$3:B26))))&CHAR(10),\"\")","v":""},null,{"$f":"IFERROR(INDEX(Aktivnost,SMALL(IF(Cilj=$D$2,ROW(Aktivnost)-MIN(ROW(Aktivnost))+1),ROWS($B$3:B26)))&CHAR(10),\"\")","v":""},null,{"$f":"IFERROR(INDEX(Aktivnost,SMALL(IF(Cilj=$F$2,ROW(Aktivnost)-MIN(ROW(Aktivnost))+1),ROWS($B$3:B26)))&CHAR(10),\"\")","v":""},null,{"$f":"IFERROR(INDEX(Aktivnost,SMALL(IF(Cilj=$H$2,ROW(Aktivnost)-MIN(ROW(Aktivnost))+1),ROWS($B$3:B26)))&CHAR(10),\"\")","v":""}]
[null,{"$f":"IFERROR(INDEX(Aktivnost,SMALL(IF(Cilj=$B$2,ROW(Aktivnost)-MIN(ROW(Aktivnost))+1),ROWS($B$3:B27)))&\" \"&CHAR(10)&(INDEX(Rezultat,SMALL(IF(Cilj=$B$2,ROW(Rezultat)-MIN(ROW(Rezultat))+1),ROWS($B$3:B27))))&CHAR(10),\"\")","v":""},null,{"$f":"IFERROR(INDEX(Aktivnost,SMALL(IF(Cilj=$D$2,ROW(Aktivnost)-MIN(ROW(Aktivnost))+1),ROWS($B$3:B27)))&CHAR(10),\"\")","v":""},null,{"$f":"IFERROR(INDEX(Aktivnost,SMALL(IF(Cilj=$F$2,ROW(Aktivnost)-MIN(ROW(Aktivnost))+1),ROWS($B$3:B27)))&CHAR(10),\"\")","v":""},null,{"$f":"IFERROR(INDEX(Aktivnost,SMALL(IF(Cilj=$H$2,ROW(Aktivnost)-MIN(ROW(Aktivnost))+1),ROWS($B$3:B27)))&CHAR(10),\"\")","v":""}]
[null,{"$f":"IFERROR(INDEX(Aktivnost,SMALL(IF(Cilj=$B$2,ROW(Aktivnost)-MIN(ROW(Aktivnost))+1),ROWS($B$3:B28)))&\" \"&CHAR(10)&(INDEX(Rezultat,SMALL(IF(Cilj=$B$2,ROW(Rezultat)-MIN(ROW(Rezultat))+1),ROWS($B$3:B28))))&CHAR(10),\"\")","v":""},null,{"$f":"IFERROR(INDEX(Aktivnost,SMALL(IF(Cilj=$D$2,ROW(Aktivnost)-MIN(ROW(Aktivnost))+1),ROWS($B$3:B28)))&CHAR(10),\"\")","v":""},null,{"$f":"IFERROR(INDEX(Aktivnost,SMALL(IF(Cilj=$F$2,ROW(Aktivnost)-MIN(ROW(Aktivnost))+1),ROWS($B$3:B28)))&CHAR(10),\"\")","v":""},null,{"$f":"IFERROR(INDEX(Aktivnost,SMALL(IF(Cilj=$H$2,ROW(Aktivnost)-MIN(ROW(Aktivnost))+1),ROWS($B$3:B28)))&CHAR(10),\"\")","v":""}]
[null,{"$f":"IFERROR(INDEX(Aktivnost,SMALL(IF(Cilj=$B$2,ROW(Aktivnost)-MIN(ROW(Aktivnost))+1),ROWS($B$3:B29)))&\" \"&CHAR(10)&(INDEX(Rezultat,SMALL(IF(Cilj=$B$2,ROW(Rezultat)-MIN(ROW(Rezultat))+1),ROWS($B$3:B29))))&CHAR(10),\"\")","v":""},null,{"$f":"IFERROR(INDEX(Aktivnost,SMALL(IF(Cilj=$D$2,ROW(Aktivnost)-MIN(ROW(Aktivnost))+1),ROWS($B$3:B29)))&CHAR(10),\"\")","v":""},null,{"$f":"IFERROR(INDEX(Aktivnost,SMALL(IF(Cilj=$F$2,ROW(Aktivnost)-MIN(ROW(Aktivnost))+1),ROWS($B$3:B29)))&CHAR(10),\"\")","v":""},null,{"$f":"IFERROR(INDEX(Aktivnost,SMALL(IF(Cilj=$H$2,ROW(Aktivnost)-MIN(ROW(Aktivnost))+1),ROWS($B$3:B29)))&CHAR(10),\"\")","v":""}]
[null,{"$f":"IFERROR(INDEX(Aktivnost,SMALL(IF(Cilj=$B$2,ROW(Aktivnost)-MIN(ROW(Aktivnost))+1),ROWS($B$3:B30)))&\" \"&CHAR(10)&(INDEX(Rezultat,SMALL(IF(Cilj=$B$2,ROW(Rezultat)-MIN(ROW(Rezultat))+1),ROWS($B$3:B30))))&CHAR(10),\"\")","v":""},null,{"$f":"IFERROR(INDEX(Aktivnost,SMALL(IF(Cilj=$D$2,ROW(Aktivnost)-MIN(ROW(Aktivnost))+1),ROWS($B$3:B30)))&CHAR(10),\"\")","v":""},null,{"$f":"IFERROR(INDEX(Aktivnost,SMALL(IF(Cilj=$F$2,ROW(Aktivnost)-MIN(ROW(Aktivnost))+1),ROWS($B$3:B30)))&CHAR(10),\"\")","v":""},null,{"$f":"IFERROR(INDEX(Aktivnost,SMALL(IF(Cilj=$H$2,ROW(Aktivnost)-MIN(ROW(Aktivnost))+1),ROWS($B$3:B30)))&CHAR(10),\"\")","v":""}]
[null,{"$f":"IFERROR(INDEX(Aktivnost,SMALL(IF(Cilj=$B$2,ROW(Aktivnost)-MIN(ROW(Aktivnost))+1),ROWS($B$3:B31)))&\" \"&CHAR(10)&(INDEX(Rezultat,SMALL(IF(Cilj=$B$2,ROW(Rezultat)-MIN(ROW(Rezultat))+1),ROWS($B$3:B31))))&CHAR(10),\"\")","v":""},null,{"$f":"IFERROR(INDEX(Aktivnost,SMALL(IF(Cilj=$D$2,ROW(Aktivnost)-MIN(ROW(Aktivnost))+1),ROWS($B$3:B31)))&CHAR(10),\"\")","v":""},null,{"$f":"IFERROR(INDEX(Aktivnost,SMALL(IF(Cilj=$F$2,ROW(Aktivnost)-MIN(ROW(Aktivnost))+1),ROWS($B$3:B31)))&CHAR(10),\"\")","v":""},null,{"$f":"IFERROR(INDEX(Aktivnost,SMALL(IF(Cilj=$H$2,ROW(Aktivnost)-MIN(ROW(Aktivnost))+1),ROWS($B$3:B31)))&CHAR(10),\"\")","v":""}]
[null,{"$f":"IFERROR(INDEX(Aktivnost,SMALL(IF(Cilj=$B$2,ROW(Aktivnost)-MIN(ROW(Aktivnost))+1),ROWS($B$3:B32)))&\" \"&CHAR(10)&(INDEX(Rezultat,SMALL(IF(Cilj=$B$2,ROW(Rezultat)-MIN(ROW(Rezultat))+1),ROWS($B$3:B32))))&CHAR(10),\"\")","v":""},null,{"$f":"IFERROR(INDEX(Aktivnost,SMALL(IF(Cilj=$D$2,ROW(Aktivnost)-MIN(ROW(Aktivnost))+1),ROWS($B$3:B32)))&CHAR(10),\"\")","v":""},null,{"$f":"IFERROR(INDEX(Aktivnost,SMALL(IF(Cilj=$F$2,ROW(Aktivnost)-MIN(ROW(Aktivnost))+1),ROWS($B$3:B32)))&CHAR(10),\"\")","v":""},null,{"$f":"IFERROR(INDEX(Aktivnost,SMALL(IF(Cilj=$H$2,ROW(Aktivnost)-MIN(ROW(Aktivnost))+1),ROWS($B$3:B32)))&CHAR(10),\"\")","v":""}]
[null,{"$f":"IFERROR(INDEX(Aktivnost,SMALL(IF(Cilj=$B$2,ROW(Aktivnost)-MIN(ROW(Aktivnost))+1),ROWS($B$3:B33)))&\" \"&CHAR(10)&(INDEX(Rezultat,SMALL(IF(Cilj=$B$2,ROW(Rezultat)-MIN(ROW(Rezultat))+1),ROWS($B$3:B33))))&CHAR(10),\"\")","v":""},null,{"$f":"IFERROR(INDEX(Aktivnost,SMALL(IF(Cilj=$D$2,ROW(Aktivnost)-MIN(ROW(Aktivnost))+1),ROWS($B$3:B33)))&CHAR(10),\"\")","v":""},null,{"$f":"IFERROR(INDEX(Aktivnost,SMALL(IF(Cilj=$F$2,ROW(Aktivnost)-MIN(ROW(Aktivnost))+1),ROWS($B$3:B33)))&CHAR(10),\"\")","v":""},null,{"$f":"IFERROR(INDEX(Aktivnost,SMALL(IF(Cilj=$H$2,ROW(Aktivnost)-MIN(ROW(Aktivnost))+1),ROWS($B$3:B33)))&CHAR(10),\"\")","v":""}]
[null,{"$f":"IFERROR(INDEX(Aktivnost,SMALL(IF(Cilj=$B$2,ROW(Aktivnost)-MIN(ROW(Aktivnost))+1),ROWS($B$3:B34)))&\" \"&CHAR(10)&(INDEX(Rezultat,SMALL(IF(Cilj=$B$2,ROW(Rezultat)-MIN(ROW(Rezultat))+1),ROWS($B$3:B34))))&CHAR(10),\"\")","v":""},null,{"$f":"IFERROR(INDEX(Aktivnost,SMALL(IF(Cilj=$D$2,ROW(Aktivnost)-MIN(ROW(Aktivnost))+1),ROWS($B$3:B34)))&CHAR(10),\"\")","v":""},null,{"$f":"IFERROR(INDEX(Aktivnost,SMALL(IF(Cilj=$F$2,ROW(Aktivnost)-MIN(ROW(Aktivnost))+1),ROWS($B$3:B34)))&CHAR(10),\"\")","v":""},null,{"$f":"IFERROR(INDEX(Aktivnost,SMALL(IF(Cilj=$H$2,ROW(Aktivnost)-MIN(ROW(Aktivnost))+1),ROWS($B$3:B34)))&CHAR(10),\"\")","v":""}]
[null,{"$f":"IFERROR(INDEX(Aktivnost,SMALL(IF(Cilj=$B$2,ROW(Aktivnost)-MIN(ROW(Aktivnost))+1),ROWS($B$3:B35)))&\" \"&CHAR(10)&(INDEX(Rezultat,SMALL(IF(Cilj=$B$2,ROW(Rezultat)-MIN(ROW(Rezultat))+1),ROWS($B$3:B35))))&CHAR(10),\"\")","v":""},null,{"$f":"IFERROR(INDEX(Aktivnost,SMALL(IF(Cilj=$D$2,ROW(Aktivnost)-MIN(ROW(Aktivnost))+1),ROWS($B$3:B35)))&CHAR(10),\"\")","v":""},null,{"$f":"IFERROR(INDEX(Aktivnost,SMALL(IF(Cilj=$F$2,ROW(Aktivnost)-MIN(ROW(Aktivnost))+1),ROWS($B$3:B35)))&CHAR(10),\"\")","v":""},null,{"$f":"IFERROR(INDEX(Aktivnost,SMALL(IF(Cilj=$H$2,ROW(Aktivnost)-MIN(ROW(Aktivnost))+1),ROWS($B$3:B35)))&CHAR(10),\"\")","v":""}]
[null,{"$f":"IFERROR(INDEX(Aktivnost,SMALL(IF(Cilj=$B$2,ROW(Aktivnost)-MIN(ROW(Aktivnost))+1),ROWS($B$3:B36)))&\" \"&CHAR(10)&(INDEX(Rezultat,SMALL(IF(Cilj=$B$2,ROW(Rezultat)-MIN(ROW(Rezultat))+1),ROWS($B$3:B36))))&CHAR(10),\"\")","v":""},null,{"$f":"IFERROR(INDEX(Aktivnost,SMALL(IF(Cilj=$D$2,ROW(Aktivnost)-MIN(ROW(Aktivnost))+1),ROWS($B$3:B36)))&CHAR(10),\"\")","v":""},null,{"$f":"IFERROR(INDEX(Aktivnost,SMALL(IF(Cilj=$F$2,ROW(Aktivnost)-MIN(ROW(Aktivnost))+1),ROWS($B$3:B36)))&CHAR(10),\"\")","v":""},null,{"$f":"IFERROR(INDEX(Aktivnost,SMALL(IF(Cilj=$H$2,ROW(Aktivnost)-MIN(ROW(Aktivnost))+1),ROWS($B$3:B36)))&CHAR(10),\"\")","v":""}]
[null,{"$f":"IFERROR(INDEX(Aktivnost,SMALL(IF(Cilj=$B$2,ROW(Aktivnost)-MIN(ROW(Aktivnost))+1),ROWS($B$3:B37)))&\" \"&CHAR(10)&(INDEX(Rezultat,SMALL(IF(Cilj=$B$2,ROW(Rezultat)-MIN(ROW(Rezultat))+1),ROWS($B$3:B37))))&CHAR(10),\"\")","v":""},null,{"$f":"IFERROR(INDEX(Aktivnost,SMALL(IF(Cilj=$D$2,ROW(Aktivnost)-MIN(ROW(Aktivnost))+1),ROWS($B$3:B37)))&CHAR(10),\"\")","v":""},null,{"$f":"IFERROR(INDEX(Aktivnost,SMALL(IF(Cilj=$F$2,ROW(Aktivnost)-MIN(ROW(Aktivnost))+1),ROWS($B$3:B37)))&CHAR(10),\"\")","v":""},null,{"$f":"IFERROR(INDEX(Aktivnost,SMALL(IF(Cilj=$H$2,ROW(Aktivnost)-MIN(ROW(Aktivnost))+1),ROWS($B$3:B37)))&CHAR(10),\"\")","v":""}]
[null,{"$f":"IFERROR(INDEX(Aktivnost,SMALL(IF(Cilj=$B$2,ROW(Aktivnost)-MIN(ROW(Aktivnost))+1),ROWS($B$3:B38)))&\" \"&CHAR(10)&(INDEX(Rezultat,SMALL(IF(Cilj=$B$2,ROW(Rezultat)-MIN(ROW(Rezultat))+1),ROWS($B$3:B38))))&CHAR(10),\"\")","v":""},null,{"$f":"IFERROR(INDEX(Aktivnost,SMALL(IF(Cilj=$D$2,ROW(Aktivnost)-MIN(ROW(Aktivnost))+1),ROWS($B$3:B38)))&CHAR(10),\"\")","v":""},null,{"$f":"IFERROR(INDEX(Aktivnost,SMALL(IF(Cilj=$F$2,ROW(Aktivnost)-MIN(ROW(Aktivnost))+1),ROWS($B$3:B38)))&CHAR(10),\"\")","v":""},null,{"$f":"IFERROR(INDEX(Aktivnost,SMALL(IF(Cilj=$H$2,ROW(Aktivnost)-MIN(ROW(Aktivnost))+1),ROWS($B$3:B38)))&CHAR(10),\"\")","v":""}]
[null,{"$f":"IFERROR(INDEX(Aktivnost,SMALL(IF(Cilj=$B$2,ROW(Aktivnost)-MIN(ROW(Aktivnost))+1),ROWS($B$3:B39)))&\" \"&CHAR(10)&(INDEX(Rezultat,SMALL(IF(Cilj=$B$2,ROW(Rezultat)-MIN(ROW(Rezultat))+1),ROWS($B$3:B39))))&CHAR(10),\"\")","v":""},null,{"$f":"IFERROR(INDEX(Aktivnost,SMALL(IF(Cilj=$D$2,ROW(Aktivnost)-MIN(ROW(Aktivnost))+1),ROWS($B$3:B39)))&CHAR(10),\"\")","v":""},null,{"$f":"IFERROR(INDEX(Aktivnost,SMALL(IF(Cilj=$F$2,ROW(Aktivnost)-MIN(ROW(Aktivnost))+1),ROWS($B$3:B39)))&CHAR(10),\"\")","v":""},null,{"$f":"IFERROR(INDEX(Aktivnost,SMALL(IF(Cilj=$H$2,ROW(Aktivnost)-MIN(ROW(Aktivnost))+1),ROWS($B$3:B39)))&CHAR(10),\"\")","v":""}]
[null,{"$f":"IFERROR(INDEX(Aktivnost,SMALL(IF(Cilj=$B$2,ROW(Aktivnost)-MIN(ROW(Aktivnost))+1),ROWS($B$3:B40)))&\" \"&CHAR(10)&(INDEX(Rezultat,SMALL(IF(Cilj=$B$2,ROW(Rezultat)-MIN(ROW(Rezultat))+1),ROWS($B$3:B40))))&CHAR(10),\"\")","v":""},null,{"$f":"IFERROR(INDEX(Aktivnost,SMALL(IF(Cilj=$D$2,ROW(Aktivnost)-MIN(ROW(Aktivnost))+1),ROWS($B$3:B40)))&CHAR(10),\"\")","v":""},null,{"$f":"IFERROR(INDEX(Aktivnost,SMALL(IF(Cilj=$F$2,ROW(Aktivnost)-MIN(ROW(Aktivnost))+1),ROWS($B$3:B40)))&CHAR(10),\"\")","v":""},null,{"$f":"IFERROR(INDEX(Aktivnost,SMALL(IF(Cilj=$H$2,ROW(Aktivnost)-MIN(ROW(Aktivnost))+1),ROWS($B$3:B40)))&CHAR(10),\"\")","v":""}]
[null,{"$f":"IFERROR(INDEX(Aktivnost,SMALL(IF(Cilj=$B$2,ROW(Aktivnost)-MIN(ROW(Aktivnost))+1),ROWS($B$3:B41)))&\" \"&CHAR(10)&(INDEX(Rezultat,SMALL(IF(Cilj=$B$2,ROW(Rezultat)-MIN(ROW(Rezultat))+1),ROWS($B$3:B41))))&CHAR(10),\"\")","v":""},null,{"$f":"IFERROR(INDEX(Aktivnost,SMALL(IF(Cilj=$D$2,ROW(Aktivnost)-MIN(ROW(Aktivnost))+1),ROWS($B$3:B41)))&CHAR(10),\"\")","v":""},null,{"$f":"IFERROR(INDEX(Aktivnost,SMALL(IF(Cilj=$F$2,ROW(Aktivnost)-MIN(ROW(Aktivnost))+1),ROWS($B$3:B41)))&CHAR(10),\"\")","v":""},null,{"$f":"IFERROR(INDEX(Aktivnost,SMALL(IF(Cilj=$H$2,ROW(Aktivnost)-MIN(ROW(Aktivnost))+1),ROWS($B$3:B41)))&CHAR(10),\"\")","v":""}]
[null,{"$f":"IFERROR(INDEX(Aktivnost,SMALL(IF(Cilj=$B$2,ROW(Aktivnost)-MIN(ROW(Aktivnost))+1),ROWS($B$3:B42)))&\" \"&CHAR(10)&(INDEX(Rezultat,SMALL(IF(Cilj=$B$2,ROW(Rezultat)-MIN(ROW(Rezultat))+1),ROWS($B$3:B42))))&CHAR(10),\"\")","v":""},null,{"$f":"IFERROR(INDEX(Aktivnost,SMALL(IF(Cilj=$D$2,ROW(Aktivnost)-MIN(ROW(Aktivnost))+1),ROWS($B$3:B42)))&CHAR(10),\"\")","v":""},null,{"$f":"IFERROR(INDEX(Aktivnost,SMALL(IF(Cilj=$F$2,ROW(Aktivnost)-MIN(ROW(Aktivnost))+1),ROWS($B$3:B42)))&CHAR(10),\"\")","v":""},null,{"$f":"IFERROR(INDEX(Aktivnost,SMALL(IF(Cilj=$H$2,ROW(Aktivnost)-MIN(ROW(Aktivnost))+1),ROWS($B$3:B42)))&CHAR(10),\"\")","v":""}]
[null,{"$f":"IFERROR(INDEX(Aktivnost,SMALL(IF(Cilj=$B$2,ROW(Aktivnost)-MIN(ROW(Aktivnost))+1),ROWS($B$3:B43)))&\" \"&CHAR(10)&(INDEX(Rezultat,SMALL(IF(Cilj=$B$2,ROW(Rezultat)-MIN(ROW(Rezultat))+1),ROWS($B$3:B43))))&CHAR(10),\"\")","v":""},null,{"$f":"IFERROR(INDEX(Aktivnost,SMALL(IF(Cilj=$D$2,ROW(Aktivnost)-MIN(ROW(Aktivnost))+1),ROWS($B$3:B43)))&CHAR(10),\"\")","v":""},null,{"$f":"IFERROR(INDEX(Aktivnost,SMALL(IF(Cilj=$F$2,ROW(Aktivnost)-MIN(ROW(Aktivnost))+1),ROWS($B$3:B43)))&CHAR(10),\"\")","v":""},null,{"$f":"IFERROR(INDEX(Aktivnost,SMALL(IF(Cilj=$H$2,ROW(Aktivnost)-MIN(ROW(Aktivnost))+1),ROWS($B$3:B43)))&CHAR(10),\"\")","v":""}]
[null,{"$f":"IFERROR(INDEX(Aktivnost,SMALL(IF(Cilj=$B$2,ROW(Aktivnost)-MIN(ROW(Aktivnost))+1),ROWS($B$3:B44)))&\" \"&CHAR(10)&(INDEX(Rezultat,SMALL(IF(Cilj=$B$2,ROW(Rezultat)-MIN(ROW(Rezultat))+1),ROWS($B$3:B44))))&CHAR(10),\"\")","v":""},null,{"$f":"IFERROR(INDEX(Aktivnost,SMALL(IF(Cilj=$D$2,ROW(Aktivnost)-MIN(ROW(Aktivnost))+1),ROWS($B$3:B44)))&CHAR(10),\"\")","v":""},null,{"$f":"IFERROR(INDEX(Aktivnost,SMALL(IF(Cilj=$F$2,ROW(Aktivnost)-MIN(ROW(Aktivnost))+1),ROWS($B$3:B44)))&CHAR(10),\"\")","v":""},null,{"$f":"IFERROR(INDEX(Aktivnost,SMALL(IF(Cilj=$H$2,ROW(Aktivnost)-MIN(ROW(Aktivnost))+1),ROWS($B$3:B44)))&CHAR(10),\"\")","v":""}]
[null,{"$f":"IFERROR(INDEX(Aktivnost,SMALL(IF(Cilj=$B$2,ROW(Aktivnost)-MIN(ROW(Aktivnost))+1),ROWS($B$3:B45)))&\" \"&CHAR(10)&(INDEX(Rezultat,SMALL(IF(Cilj=$B$2,ROW(Rezultat)-MIN(ROW(Rezultat))+1),ROWS($B$3:B45))))&CHAR(10),\"\")","v":""},null,{"$f":"IFERROR(INDEX(Aktivnost,SMALL(IF(Cilj=$D$2,ROW(Aktivnost)-MIN(ROW(Aktivnost))+1),ROWS($B$3:B45)))&CHAR(10),\"\")","v":""},null,{"$f":"IFERROR(INDEX(Aktivnost,SMALL(IF(Cilj=$F$2,ROW(Aktivnost)-MIN(ROW(Aktivnost))+1),ROWS($B$3:B45)))&CHAR(10),\"\")","v":""},null,{"$f":"IFERROR(INDEX(Aktivnost,SMALL(IF(Cilj=$H$2,ROW(Aktivnost)-MIN(ROW(Aktivnost))+1),ROWS($B$3:B45)))&CHAR(10),\"\")","v":""}]
[null,{"$f":"IFERROR(INDEX(Aktivnost,SMALL(IF(Cilj=$B$2,ROW(Aktivnost)-MIN(ROW(Aktivnost))+1),ROWS($B$3:B46)))&\" \"&CHAR(10)&(INDEX(Rezultat,SMALL(IF(Cilj=$B$2,ROW(Rezultat)-MIN(ROW(Rezultat))+1),ROWS($B$3:B46))))&CHAR(10),\"\")","v":""},null,{"$f":"IFERROR(INDEX(Aktivnost,SMALL(IF(Cilj=$D$2,ROW(Aktivnost)-MIN(ROW(Aktivnost))+1),ROWS($B$3:B46)))&CHAR(10),\"\")","v":""},null,{"$f":"IFERROR(INDEX(Aktivnost,SMALL(IF(Cilj=$F$2,ROW(Aktivnost)-MIN(ROW(Aktivnost))+1),ROWS($B$3:B46)))&CHAR(10),\"\")","v":""},null,{"$f":"IFERROR(INDEX(Aktivnost,SMALL(IF(Cilj=$H$2,ROW(Aktivnost)-MIN(ROW(Aktivnost))+1),ROWS($B$3:B46)))&CHAR(10),\"\")","v":""}]
[null,{"$f":"IFERROR(INDEX(Aktivnost,SMALL(IF(Cilj=$B$2,ROW(Aktivnost)-MIN(ROW(Aktivnost))+1),ROWS($B$3:B47)))&\" \"&CHAR(10)&(INDEX(Rezultat,SMALL(IF(Cilj=$B$2,ROW(Rezultat)-MIN(ROW(Rezultat))+1),ROWS($B$3:B47))))&CHAR(10),\"\")","v":""},null,{"$f":"IFERROR(INDEX(Aktivnost,SMALL(IF(Cilj=$D$2,ROW(Aktivnost)-MIN(ROW(Aktivnost))+1),ROWS($B$3:B47)))&CHAR(10),\"\")","v":""},null,{"$f":"IFERROR(INDEX(Aktivnost,SMALL(IF(Cilj=$F$2,ROW(Aktivnost)-MIN(ROW(Aktivnost))+1),ROWS($B$3:B47)))&CHAR(10),\"\")","v":""},null,{"$f":"IFERROR(INDEX(Aktivnost,SMALL(IF(Cilj=$H$2,ROW(Aktivnost)-MIN(ROW(Aktivnost))+1),ROWS($B$3:B47)))&CHAR(10),\"\")","v":""}]
[null,{"$f":"IFERROR(INDEX(Aktivnost,SMALL(IF(Cilj=$B$2,ROW(Aktivnost)-MIN(ROW(Aktivnost))+1),ROWS($B$3:B48)))&\" \"&CHAR(10)&(INDEX(Rezultat,SMALL(IF(Cilj=$B$2,ROW(Rezultat)-MIN(ROW(Rezultat))+1),ROWS($B$3:B48))))&CHAR(10),\"\")","v":""},null,{"$f":"IFERROR(INDEX(Aktivnost,SMALL(IF(Cilj=$D$2,ROW(Aktivnost)-MIN(ROW(Aktivnost))+1),ROWS($B$3:B48)))&CHAR(10),\"\")","v":""},null,{"$f":"IFERROR(INDEX(Aktivnost,SMALL(IF(Cilj=$F$2,ROW(Aktivnost)-MIN(ROW(Aktivnost))+1),ROWS($B$3:B48)))&CHAR(10),\"\")","v":""},null,{"$f":"IFERROR(INDEX(Aktivnost,SMALL(IF(Cilj=$H$2,ROW(Aktivnost)-MIN(ROW(Aktivnost))+1),ROWS($B$3:B48)))&CHAR(10),\"\")","v":""}]
[null,{"$f":"IFERROR(INDEX(Aktivnost,SMALL(IF(Cilj=$B$2,ROW(Aktivnost)-MIN(ROW(Aktivnost))+1),ROWS($B$3:B49)))&\" \"&CHAR(10)&(INDEX(Rezultat,SMALL(IF(Cilj=$B$2,ROW(Rezultat)-MIN(ROW(Rezultat))+1),ROWS($B$3:B49))))&CHAR(10),\"\")","v":""},null,{"$f":"IFERROR(INDEX(Aktivnost,SMALL(IF(Cilj=$D$2,ROW(Aktivnost)-MIN(ROW(Aktivnost))+1),ROWS($B$3:B49)))&CHAR(10),\"\")","v":""},null,{"$f":"IFERROR(INDEX(Aktivnost,SMALL(IF(Cilj=$F$2,ROW(Aktivnost)-MIN(ROW(Aktivnost))+1),ROWS($B$3:B49)))&CHAR(10),\"\")","v":""},null,{"$f":"IFERROR(INDEX(Aktivnost,SMALL(IF(Cilj=$H$2,ROW(Aktivnost)-MIN(ROW(Aktivnost))+1),ROWS($B$3:B49)))&CHAR(10),\"\")","v":""}]
[null,{"$f":"IFERROR(INDEX(Aktivnost,SMALL(IF(Cilj=$B$2,ROW(Aktivnost)-MIN(ROW(Aktivnost))+1),ROWS($B$3:B50)))&\" \"&CHAR(10)&(INDEX(Rezultat,SMALL(IF(Cilj=$B$2,ROW(Rezultat)-MIN(ROW(Rezultat))+1),ROWS($B$3:B50))))&CHAR(10),\"\")","v":""},null,{"$f":"IFERROR(INDEX(Aktivnost,SMALL(IF(Cilj=$D$2,ROW(Aktivnost)-MIN(ROW(Aktivnost))+1),ROWS($B$3:B50)))&CHAR(10),\"\")","v":""},null,{"$f":"IFERROR(INDEX(Aktivnost,SMALL(IF(Cilj=$F$2,ROW(Aktivnost)-MIN(ROW(Aktivnost))+1),ROWS($B$3:B50)))&CHAR(10),\"\")","v":""},null,{"$f":"IFERROR(INDEX(Aktivnost,SMALL(IF(Cilj=$H$2,ROW(Aktivnost)-MIN(ROW(Aktivnost))+1),ROWS($B$3:B50)))&CHAR(10),\"\")","v":""}]
[null,{"$f":"IFERROR(INDEX(Aktivnost,SMALL(IF(Cilj=$B$2,ROW(Aktivnost)-MIN(ROW(Aktivnost))+1),ROWS($B$3:B51)))&\" \"&CHAR(10)&(INDEX(Rezultat,SMALL(IF(Cilj=$B$2,ROW(Rezultat)-MIN(ROW(Rezultat))+1),ROWS($B$3:B51))))&CHAR(10),\"\")","v":""},null,{"$f":"IFERROR(INDEX(Aktivnost,SMALL(IF(Cilj=$D$2,ROW(Aktivnost)-MIN(ROW(Aktivnost))+1),ROWS($B$3:B51)))&CHAR(10),\"\")","v":""},null,{"$f":"IFERROR(INDEX(Aktivnost,SMALL(IF(Cilj=$F$2,ROW(Aktivnost)-MIN(ROW(Aktivnost))+1),ROWS($B$3:B51)))&CHAR(10),\"\")","v":""},null,{"$f":"IFERROR(INDEX(Aktivnost,SMALL(IF(Cilj=$H$2,ROW(Aktivnost)-MIN(ROW(Aktivnost))+1),ROWS($B$3:B51)))&CHAR(10),\"\")","v":""}]
[null,{"$f":"IFERROR(INDEX(Aktivnost,SMALL(IF(Cilj=$B$2,ROW(Aktivnost)-MIN(ROW(Aktivnost))+1),ROWS($B$3:B52)))&\" \"&CHAR(10)&(INDEX(Rezultat,SMALL(IF(Cilj=$B$2,ROW(Rezultat)-MIN(ROW(Rezultat))+1),ROWS($B$3:B52))))&CHAR(10),\"\")","v":""},null,{"$f":"IFERROR(INDEX(Aktivnost,SMALL(IF(Cilj=$D$2,ROW(Aktivnost)-MIN(ROW(Aktivnost))+1),ROWS($B$3:B52)))&CHAR(10),\"\")","v":""},null,{"$f":"IFERROR(INDEX(Aktivnost,SMALL(IF(Cilj=$F$2,ROW(Aktivnost)-MIN(ROW(Aktivnost))+1),ROWS($B$3:B52)))&CHAR(10),\"\")","v":""},null,{"$f":"IFERROR(INDEX(Aktivnost,SMALL(IF(Cilj=$H$2,ROW(Aktivnost)-MIN(ROW(Aktivnost))+1),ROWS($B$3:B52)))&CHAR(10),\"\")","v":""}]
[null,{"$f":"IFERROR(INDEX(Aktivnost,SMALL(IF(Cilj=$B$2,ROW(Aktivnost)-MIN(ROW(Aktivnost))+1),ROWS($B$3:B53)))&\" \"&CHAR(10)&(INDEX(Rezultat,SMALL(IF(Cilj=$B$2,ROW(Rezultat)-MIN(ROW(Rezultat))+1),ROWS($B$3:B53))))&CHAR(10),\"\")","v":""},null,{"$f":"IFERROR(INDEX(Aktivnost,SMALL(IF(Cilj=$D$2,ROW(Aktivnost)-MIN(ROW(Aktivnost))+1),ROWS($B$3:B53)))&CHAR(10),\"\")","v":""},null,{"$f":"IFERROR(INDEX(Aktivnost,SMALL(IF(Cilj=$F$2,ROW(Aktivnost)-MIN(ROW(Aktivnost))+1),ROWS($B$3:B53)))&CHAR(10),\"\")","v":""},null,{"$f":"IFERROR(INDEX(Aktivnost,SMALL(IF(Cilj=$H$2,ROW(Aktivnost)-MIN(ROW(Aktivnost))+1),ROWS($B$3:B53)))&CHAR(10),\"\")","v":""}]
[null,{"$f":"IFERROR(INDEX(Aktivnost,SMALL(IF(Cilj=$B$2,ROW(Aktivnost)-MIN(ROW(Aktivnost))+1),ROWS($B$3:B54)))&\" \"&CHAR(10)&(INDEX(Rezultat,SMALL(IF(Cilj=$B$2,ROW(Rezultat)-MIN(ROW(Rezultat))+1),ROWS($B$3:B54))))&CHAR(10),\"\")","v":""},null,{"$f":"IFERROR(INDEX(Aktivnost,SMALL(IF(Cilj=$D$2,ROW(Aktivnost)-MIN(ROW(Aktivnost))+1),ROWS($B$3:B54)))&CHAR(10),\"\")","v":""},null,{"$f":"IFERROR(INDEX(Aktivnost,SMALL(IF(Cilj=$F$2,ROW(Aktivnost)-MIN(ROW(Aktivnost))+1),ROWS($B$3:B54)))&CHAR(10),\"\")","v":""},null,{"$f":"IFERROR(INDEX(Aktivnost,SMALL(IF(Cilj=$H$2,ROW(Aktivnost)-MIN(ROW(Aktivnost))+1),ROWS($B$3:B54)))&CHAR(10),\"\")","v":""}]
[null,{"$f":"IFERROR(INDEX(Aktivnost,SMALL(IF(Cilj=$B$2,ROW(Aktivnost)-MIN(ROW(Aktivnost))+1),ROWS($B$3:B55)))&\" \"&CHAR(10)&(INDEX(Rezultat,SMALL(IF(Cilj=$B$2,ROW(Rezultat)-MIN(ROW(Rezultat))+1),ROWS($B$3:B55))))&CHAR(10),\"\")","v":""},null,{"$f":"IFERROR(INDEX(Aktivnost,SMALL(IF(Cilj=$D$2,ROW(Aktivnost)-MIN(ROW(Aktivnost))+1),ROWS($B$3:B55)))&CHAR(10),\"\")","v":""},null,{"$f":"IFERROR(INDEX(Aktivnost,SMALL(IF(Cilj=$F$2,ROW(Aktivnost)-MIN(ROW(Aktivnost))+1),ROWS($B$3:B55)))&CHAR(10),\"\")","v":""},null,{"$f":"IFERROR(INDEX(Aktivnost,SMALL(IF(Cilj=$H$2,ROW(Aktivnost)-MIN(ROW(Aktivnost))+1),ROWS($B$3:B55)))&CHAR(10),\"\")","v":""}]
[null,{"$f":"IFERROR(INDEX(Aktivnost,SMALL(IF(Cilj=$B$2,ROW(Aktivnost)-MIN(ROW(Aktivnost))+1),ROWS($B$3:B56)))&\" \"&CHAR(10)&(INDEX(Rezultat,SMALL(IF(Cilj=$B$2,ROW(Rezultat)-MIN(ROW(Rezultat))+1),ROWS($B$3:B56))))&CHAR(10),\"\")","v":""},null,{"$f":"IFERROR(INDEX(Aktivnost,SMALL(IF(Cilj=$D$2,ROW(Aktivnost)-MIN(ROW(Aktivnost))+1),ROWS($B$3:B56)))&CHAR(10),\"\")","v":""},null,{"$f":"IFERROR(INDEX(Aktivnost,SMALL(IF(Cilj=$F$2,ROW(Aktivnost)-MIN(ROW(Aktivnost))+1),ROWS($B$3:B56)))&CHAR(10),\"\")","v":""},null,{"$f":"IFERROR(INDEX(Aktivnost,SMALL(IF(Cilj=$H$2,ROW(Aktivnost)-MIN(ROW(Aktivnost))+1),ROWS($B$3:B56)))&CHAR(10),\"\")","v":""}]
[null,{"$f":"IFERROR(INDEX(Aktivnost,SMALL(IF(Cilj=$B$2,ROW(Aktivnost)-MIN(ROW(Aktivnost))+1),ROWS($B$3:B57)))&\" \"&CHAR(10)&(INDEX(Rezultat,SMALL(IF(Cilj=$B$2,ROW(Rezultat)-MIN(ROW(Rezultat))+1),ROWS($B$3:B57))))&CHAR(10),\"\")","v":""},null,{"$f":"IFERROR(INDEX(Aktivnost,SMALL(IF(Cilj=$D$2,ROW(Aktivnost)-MIN(ROW(Aktivnost))+1),ROWS($B$3:B57)))&CHAR(10),\"\")","v":""},null,{"$f":"IFERROR(INDEX(Aktivnost,SMALL(IF(Cilj=$F$2,ROW(Aktivnost)-MIN(ROW(Aktivnost))+1),ROWS($B$3:B57)))&CHAR(10),\"\")","v":""},null,{"$f":"IFERROR(INDEX(Aktivnost,SMALL(IF(Cilj=$H$2,ROW(Aktivnost)-MIN(ROW(Aktivnost))+1),ROWS($B$3:B57)))&CHAR(10),\"\")","v":""}]
[null,{"$f":"IFERROR(INDEX(Aktivnost,SMALL(IF(Cilj=$B$2,ROW(Aktivnost)-MIN(ROW(Aktivnost))+1),ROWS($B$3:B58)))&\" \"&CHAR(10)&(INDEX(Rezultat,SMALL(IF(Cilj=$B$2,ROW(Rezultat)-MIN(ROW(Rezultat))+1),ROWS($B$3:B58))))&CHAR(10),\"\")","v":""},null,{"$f":"IFERROR(INDEX(Aktivnost,SMALL(IF(Cilj=$D$2,ROW(Aktivnost)-MIN(ROW(Aktivnost))+1),ROWS($B$3:B58)))&CHAR(10),\"\")","v":""},null,{"$f":"IFERROR(INDEX(Aktivnost,SMALL(IF(Cilj=$F$2,ROW(Aktivnost)-MIN(ROW(Aktivnost))+1),ROWS($B$3:B58)))&CHAR(10),\"\")","v":""},null,{"$f":"IFERROR(INDEX(Aktivnost,SMALL(IF(Cilj=$H$2,ROW(Aktivnost)-MIN(ROW(Aktivnost))+1),ROWS($B$3:B58)))&CHAR(10),\"\")","v":""}]
[null,{"$f":"IFERROR(INDEX(Aktivnost,SMALL(IF(Cilj=$B$2,ROW(Aktivnost)-MIN(ROW(Aktivnost))+1),ROWS($B$3:B59)))&\" \"&CHAR(10)&(INDEX(Rezultat,SMALL(IF(Cilj=$B$2,ROW(Rezultat)-MIN(ROW(Rezultat))+1),ROWS($B$3:B59))))&CHAR(10),\"\")","v":""},null,{"$f":"IFERROR(INDEX(Aktivnost,SMALL(IF(Cilj=$D$2,ROW(Aktivnost)-MIN(ROW(Aktivnost))+1),ROWS($B$3:B59)))&CHAR(10),\"\")","v":""},null,{"$f":"IFERROR(INDEX(Aktivnost,SMALL(IF(Cilj=$F$2,ROW(Aktivnost)-MIN(ROW(Aktivnost))+1),ROWS($B$3:B59)))&CHAR(10),\"\")","v":""},null,{"$f":"IFERROR(INDEX(Aktivnost,SMALL(IF(Cilj=$H$2,ROW(Aktivnost)-MIN(ROW(Aktivnost))+1),ROWS($B$3:B59)))&CHAR(10),\"\")","v":""}]
[null,{"$f":"IFERROR(INDEX(Aktivnost,SMALL(IF(Cilj=$B$2,ROW(Aktivnost)-MIN(ROW(Aktivnost))+1),ROWS($B$3:B60)))&\" \"&CHAR(10)&(INDEX(Rezultat,SMALL(IF(Cilj=$B$2,ROW(Rezultat)-MIN(ROW(Rezultat))+1),ROWS($B$3:B60))))&CHAR(10),\"\")","v":""},null,{"$f":"IFERROR(INDEX(Aktivnost,SMALL(IF(Cilj=$D$2,ROW(Aktivnost)-MIN(ROW(Aktivnost))+1),ROWS($B$3:B60)))&CHAR(10),\"\")","v":""},null,{"$f":"IFERROR(INDEX(Aktivnost,SMALL(IF(Cilj=$F$2,ROW(Aktivnost)-MIN(ROW(Aktivnost))+1),ROWS($B$3:B60)))&CHAR(10),\"\")","v":""},null,{"$f":"IFERROR(INDEX(Aktivnost,SMALL(IF(Cilj=$H$2,ROW(Aktivnost)-MIN(ROW(Aktivnost))+1),ROWS($B$3:B60)))&CHAR(10),\"\")","v":""}]
[null,{"$f":"IFERROR(INDEX(Aktivnost,SMALL(IF(Cilj=$B$2,ROW(Aktivnost)-MIN(ROW(Aktivnost))+1),ROWS($B$3:B61)))&\" \"&CHAR(10)&(INDEX(Rezultat,SMALL(IF(Cilj=$B$2,ROW(Rezultat)-MIN(ROW(Rezultat))+1),ROWS($B$3:B61))))&CHAR(10),\"\")","v":""},null,{"$f":"IFERROR(INDEX(Aktivnost,SMALL(IF(Cilj=$D$2,ROW(Aktivnost)-MIN(ROW(Aktivnost))+1),ROWS($B$3:B61)))&CHAR(10),\"\")","v":""},null,{"$f":"IFERROR(INDEX(Aktivnost,SMALL(IF(Cilj=$F$2,ROW(Aktivnost)-MIN(ROW(Aktivnost))+1),ROWS($B$3:B61)))&CHAR(10),\"\")","v":""},null,{"$f":"IFERROR(INDEX(Aktivnost,SMALL(IF(Cilj=$H$2,ROW(Aktivnost)-MIN(ROW(Aktivnost))+1),ROWS($B$3:B61)))&CHAR(10),\"\")","v":""}]
[null,{"$f":"IFERROR(INDEX(Aktivnost,SMALL(IF(Cilj=$B$2,ROW(Aktivnost)-MIN(ROW(Aktivnost))+1),ROWS($B$3:B62)))&\" \"&CHAR(10)&(INDEX(Rezultat,SMALL(IF(Cilj=$B$2,ROW(Rezultat)-MIN(ROW(Rezultat))+1),ROWS($B$3:B62))))&CHAR(10),\"\")","v":""},null,{"$f":"IFERROR(INDEX(Aktivnost,SMALL(IF(Cilj=$D$2,ROW(Aktivnost)-MIN(ROW(Aktivnost))+1),ROWS($B$3:B62)))&CHAR(10),\"\")","v":""},null,{"$f":"IFERROR(INDEX(Aktivnost,SMALL(IF(Cilj=$F$2,ROW(Aktivnost)-MIN(ROW(Aktivnost))+1),ROWS($B$3:B62)))&CHAR(10),\"\")","v":""},null,{"$f":"IFERROR(INDEX(Aktivnost,SMALL(IF(Cilj=$H$2,ROW(Aktivnost)-MIN(ROW(Aktivnost))+1),ROWS($B$3:B62)))&CHAR(10),\"\")","v":""}]
[null,{"$f":"IFERROR(INDEX(Aktivnost,SMALL(IF(Cilj=$B$2,ROW(Aktivnost)-MIN(ROW(Aktivnost))+1),ROWS($B$3:B63)))&\" \"&CHAR(10)&(INDEX(Rezultat,SMALL(IF(Cilj=$B$2,ROW(Rezultat)-MIN(ROW(Rezultat))+1),ROWS($B$3:B63))))&CHAR(10),\"\")","v":""},null,{"$f":"IFERROR(INDEX(Aktivnost,SMALL(IF(Cilj=$D$2,ROW(Aktivnost)-MIN(ROW(Aktivnost))+1),ROWS($B$3:B63)))&CHAR(10),\"\")","v":""},null,{"$f":"IFERROR(INDEX(Aktivnost,SMALL(IF(Cilj=$F$2,ROW(Aktivnost)-MIN(ROW(Aktivnost))+1),ROWS($B$3:B63)))&CHAR(10),\"\")","v":""},null,{"$f":"IFERROR(INDEX(Aktivnost,SMALL(IF(Cilj=$H$2,ROW(Aktivnost)-MIN(ROW(Aktivnost))+1),ROWS($B$3:B63)))&CHAR(10),\"\")","v":""}]
[null,{"$f":"IFERROR(INDEX(Aktivnost,SMALL(IF(Cilj=$B$2,ROW(Aktivnost)-MIN(ROW(Aktivnost))+1),ROWS($B$3:B64)))&\" \"&CHAR(10)&(INDEX(Rezultat,SMALL(IF(Cilj=$B$2,ROW(Rezultat)-MIN(ROW(Rezultat))+1),ROWS($B$3:B64))))&CHAR(10),\"\")","v":""},null,{"$f":"IFERROR(INDEX(Aktivnost,SMALL(IF(Cilj=$D$2,ROW(Aktivnost)-MIN(ROW(Aktivnost))+1),ROWS($B$3:B64)))&CHAR(10),\"\")","v":""},null,{"$f":"IFERROR(INDEX(Aktivnost,SMALL(IF(Cilj=$F$2,ROW(Aktivnost)-MIN(ROW(Aktivnost))+1),ROWS($B$3:B64)))&CHAR(10),\"\")","v":""},null,{"$f":"IFERROR(INDEX(Aktivnost,SMALL(IF(Cilj=$H$2,ROW(Aktivnost)-MIN(ROW(Aktivnost))+1),ROWS($B$3:B64)))&CHAR(10),\"\")","v":""}]
[null,{"$f":"IFERROR(INDEX(Aktivnost,SMALL(IF(Cilj=$B$2,ROW(Aktivnost)-MIN(ROW(Aktivnost))+1),ROWS($B$3:B65)))&\" \"&CHAR(10)&(INDEX(Rezultat,SMALL(IF(Cilj=$B$2,ROW(Rezultat)-MIN(ROW(Rezultat))+1),ROWS($B$3:B65))))&CHAR(10),\"\")","v":""},null,{"$f":"IFERROR(INDEX(Aktivnost,SMALL(IF(Cilj=$D$2,ROW(Aktivnost)-MIN(ROW(Aktivnost))+1),ROWS($B$3:B65)))&CHAR(10),\"\")","v":""},null,{"$f":"IFERROR(INDEX(Aktivnost,SMALL(IF(Cilj=$F$2,ROW(Aktivnost)-MIN(ROW(Aktivnost))+1),ROWS($B$3:B65)))&CHAR(10),\"\")","v":""},null,{"$f":"IFERROR(INDEX(Aktivnost,SMALL(IF(Cilj=$H$2,ROW(Aktivnost)-MIN(ROW(Aktivnost))+1),ROWS($B$3:B65)))&CHAR(10),\"\")","v":""}]
[null,{"$f":"IFERROR(INDEX(Aktivnost,SMALL(IF(Cilj=$B$2,ROW(Aktivnost)-MIN(ROW(Aktivnost))+1),ROWS($B$3:B66)))&\" \"&CHAR(10)&(INDEX(Rezultat,SMALL(IF(Cilj=$B$2,ROW(Rezultat)-MIN(ROW(Rezultat))+1),ROWS($B$3:B66))))&CHAR(10),\"\")","v":""},null,{"$f":"IFERROR(INDEX(Aktivnost,SMALL(IF(Cilj=$D$2,ROW(Aktivnost)-MIN(ROW(Aktivnost))+1),ROWS($B$3:B66)))&CHAR(10),\"\")","v":""},null,{"$f":"IFERROR(INDEX(Aktivnost,SMALL(IF(Cilj=$F$2,ROW(Aktivnost)-MIN(ROW(Aktivnost))+1),ROWS($B$3:B66)))&CHAR(10),\"\")","v":""},null,{"$f":"IFERROR(INDEX(Aktivnost,SMALL(IF(Cilj=$H$2,ROW(Aktivnost)-MIN(ROW(Aktivnost))+1),ROWS($B$3:B66)))&CHAR(10),\"\")","v":""}]
[null,{"$f":"IFERROR(INDEX(Aktivnost,SMALL(IF(Cilj=$B$2,ROW(Aktivnost)-MIN(ROW(Aktivnost))+1),ROWS($B$3:B67)))&\" \"&CHAR(10)&(INDEX(Rezultat,SMALL(IF(Cilj=$B$2,ROW(Rezultat)-MIN(ROW(Rezultat))+1),ROWS($B$3:B67))))&CHAR(10),\"\")","v":""},null,{"$f":"IFERROR(INDEX(Aktivnost,SMALL(IF(Cilj=$D$2,ROW(Aktivnost)-MIN(ROW(Aktivnost))+1),ROWS($B$3:B67)))&CHAR(10),\"\")","v":""},null,{"$f":"IFERROR(INDEX(Aktivnost,SMALL(IF(Cilj=$F$2,ROW(Aktivnost)-MIN(ROW(Aktivnost))+1),ROWS($B$3:B67)))&CHAR(10),\"\")","v":""},null,{"$f":"IFERROR(INDEX(Aktivnost,SMALL(IF(Cilj=$H$2,ROW(Aktivnost)-MIN(ROW(Aktivnost))+1),ROWS($B$3:B67)))&CHAR(10),\"\")","v":""}]
[null,{"$f":"IFERROR(INDEX(Aktivnost,SMALL(IF(Cilj=$B$2,ROW(Aktivnost)-MIN(ROW(Aktivnost))+1),ROWS($B$3:B68)))&\" \"&CHAR(10)&(INDEX(Rezultat,SMALL(IF(Cilj=$B$2,ROW(Rezultat)-MIN(ROW(Rezultat))+1),ROWS($B$3:B68))))&CHAR(10),\"\")","v":""},null,{"$f":"IFERROR(INDEX(Aktivnost,SMALL(IF(Cilj=$D$2,ROW(Aktivnost)-MIN(ROW(Aktivnost))+1),ROWS($B$3:B68)))&CHAR(10),\"\")","v":""},null,{"$f":"IFERROR(INDEX(Aktivnost,SMALL(IF(Cilj=$F$2,ROW(Aktivnost)-MIN(ROW(Aktivnost))+1),ROWS($B$3:B68)))&CHAR(10),\"\")","v":""},null,{"$f":"IFERROR(INDEX(Aktivnost,SMALL(IF(Cilj=$H$2,ROW(Aktivnost)-MIN(ROW(Aktivnost))+1),ROWS($B$3:B68)))&CHAR(10),\"\")","v":""}]
[null,{"$f":"IFERROR(INDEX(Aktivnost,SMALL(IF(Cilj=$B$2,ROW(Aktivnost)-MIN(ROW(Aktivnost))+1),ROWS($B$3:B69)))&\" \"&CHAR(10)&(INDEX(Rezultat,SMALL(IF(Cilj=$B$2,ROW(Rezultat)-MIN(ROW(Rezultat))+1),ROWS($B$3:B69))))&CHAR(10),\"\")","v":""},null,{"$f":"IFERROR(INDEX(Aktivnost,SMALL(IF(Cilj=$D$2,ROW(Aktivnost)-MIN(ROW(Aktivnost))+1),ROWS($B$3:B69)))&CHAR(10),\"\")","v":""},null,{"$f":"IFERROR(INDEX(Aktivnost,SMALL(IF(Cilj=$F$2,ROW(Aktivnost)-MIN(ROW(Aktivnost))+1),ROWS($B$3:B69)))&CHAR(10),\"\")","v":""},null,{"$f":"IFERROR(INDEX(Aktivnost,SMALL(IF(Cilj=$H$2,ROW(Aktivnost)-MIN(ROW(Aktivnost))+1),ROWS($B$3:B69)))&CHAR(10),\"\")","v":""}]
[null,{"$f":"IFERROR(INDEX(Aktivnost,SMALL(IF(Cilj=$B$2,ROW(Aktivnost)-MIN(ROW(Aktivnost))+1),ROWS($B$3:B70)))&\" \"&CHAR(10)&(INDEX(Rezultat,SMALL(IF(Cilj=$B$2,ROW(Rezultat)-MIN(ROW(Rezultat))+1),ROWS($B$3:B70))))&CHAR(10),\"\")","v":""},null,{"$f":"IFERROR(INDEX(Aktivnost,SMALL(IF(Cilj=$D$2,ROW(Aktivnost)-MIN(ROW(Aktivnost))+1),ROWS($B$3:B70)))&CHAR(10),\"\")","v":""},null,{"$f":"IFERROR(INDEX(Aktivnost,SMALL(IF(Cilj=$F$2,ROW(Aktivnost)-MIN(ROW(Aktivnost))+1),ROWS($B$3:B70)))&CHAR(10),\"\")","v":""},null,{"$f":"IFERROR(INDEX(Aktivnost,SMALL(IF(Cilj=$H$2,ROW(Aktivnost)-MIN(ROW(Aktivnost))+1),ROWS($B$3:B70)))&CHAR(10),\"\")","v":""}]
[null,{"$f":"IFERROR(INDEX(Aktivnost,SMALL(IF(Cilj=$B$2,ROW(Aktivnost)-MIN(ROW(Aktivnost))+1),ROWS($B$3:B71)))&\" \"&CHAR(10)&(INDEX(Rezultat,SMALL(IF(Cilj=$B$2,ROW(Rezultat)-MIN(ROW(Rezultat))+1),ROWS($B$3:B71))))&CHAR(10),\"\")","v":""},null,{"$f":"IFERROR(INDEX(Aktivnost,SMALL(IF(Cilj=$D$2,ROW(Aktivnost)-MIN(ROW(Aktivnost))+1),ROWS($B$3:B71)))&CHAR(10),\"\")","v":""},null,{"$f":"IFERROR(INDEX(Aktivnost,SMALL(IF(Cilj=$F$2,ROW(Aktivnost)-MIN(ROW(Aktivnost))+1),ROWS($B$3:B71)))&CHAR(10),\"\")","v":""},null,{"$f":"IFERROR(INDEX(Aktivnost,SMALL(IF(Cilj=$H$2,ROW(Aktivnost)-MIN(ROW(Aktivnost))+1),ROWS($B$3:B71)))&CHAR(10),\"\")","v":""}]
[null,{"$f":"IFERROR(INDEX(Aktivnost,SMALL(IF(Cilj=$B$2,ROW(Aktivnost)-MIN(ROW(Aktivnost))+1),ROWS($B$3:B72)))&\" \"&CHAR(10)&(INDEX(Rezultat,SMALL(IF(Cilj=$B$2,ROW(Rezultat)-MIN(ROW(Rezultat))+1),ROWS($B$3:B72))))&CHAR(10),\"\")","v":""},null,{"$f":"IFERROR(INDEX(Aktivnost,SMALL(IF(Cilj=$D$2,ROW(Aktivnost)-MIN(ROW(Aktivnost))+1),ROWS($B$3:B72)))&CHAR(10),\"\")","v":""},null,{"$f":"IFERROR(INDEX(Aktivnost,SMALL(IF(Cilj=$F$2,ROW(Aktivnost)-MIN(ROW(Aktivnost))+1),ROWS($B$3:B72)))&CHAR(10),\"\")","v":""},null,{"$f":"IFERROR(INDEX(Aktivnost,SMALL(IF(Cilj=$H$2,ROW(Aktivnost)-MIN(ROW(Aktivnost))+1),ROWS($B$3:B72)))&CHAR(10),\"\")","v":""}]
[null,{"$f":"IFERROR(INDEX(Aktivnost,SMALL(IF(Cilj=$B$2,ROW(Aktivnost)-MIN(ROW(Aktivnost))+1),ROWS($B$3:B73)))&\" \"&CHAR(10)&(INDEX(Rezultat,SMALL(IF(Cilj=$B$2,ROW(Rezultat)-MIN(ROW(Rezultat))+1),ROWS($B$3:B73))))&CHAR(10),\"\")","v":""},null,{"$f":"IFERROR(INDEX(Aktivnost,SMALL(IF(Cilj=$D$2,ROW(Aktivnost)-MIN(ROW(Aktivnost))+1),ROWS($B$3:B73)))&CHAR(10),\"\")","v":""},null,{"$f":"IFERROR(INDEX(Aktivnost,SMALL(IF(Cilj=$F$2,ROW(Aktivnost)-MIN(ROW(Aktivnost))+1),ROWS($B$3:B73)))&CHAR(10),\"\")","v":""},null,{"$f":"IFERROR(INDEX(Aktivnost,SMALL(IF(Cilj=$H$2,ROW(Aktivnost)-MIN(ROW(Aktivnost))+1),ROWS($B$3:B73)))&CHAR(10),\"\")","v":""}]
[null,{"$f":"IFERROR(INDEX(Aktivnost,SMALL(IF(Cilj=$B$2,ROW(Aktivnost)-MIN(ROW(Aktivnost))+1),ROWS($B$3:B74)))&\" \"&CHAR(10)&(INDEX(Rezultat,SMALL(IF(Cilj=$B$2,ROW(Rezultat)-MIN(ROW(Rezultat))+1),ROWS($B$3:B74))))&CHAR(10),\"\")","v":""},null,{"$f":"IFERROR(INDEX(Aktivnost,SMALL(IF(Cilj=$D$2,ROW(Aktivnost)-MIN(ROW(Aktivnost))+1),ROWS($B$3:B74)))&CHAR(10),\"\")","v":""},null,{"$f":"IFERROR(INDEX(Aktivnost,SMALL(IF(Cilj=$F$2,ROW(Aktivnost)-MIN(ROW(Aktivnost))+1),ROWS($B$3:B74)))&CHAR(10),\"\")","v":""},null,{"$f":"IFERROR(INDEX(Aktivnost,SMALL(IF(Cilj=$H$2,ROW(Aktivnost)-MIN(ROW(Aktivnost))+1),ROWS($B$3:B74)))&CHAR(10),\"\")","v":""}]
[null,{"$f":"IFERROR(INDEX(Aktivnost,SMALL(IF(Cilj=$B$2,ROW(Aktivnost)-MIN(ROW(Aktivnost))+1),ROWS($B$3:B75)))&\" \"&CHAR(10)&(INDEX(Rezultat,SMALL(IF(Cilj=$B$2,ROW(Rezultat)-MIN(ROW(Rezultat))+1),ROWS($B$3:B75))))&CHAR(10),\"\")","v":""},null,{"$f":"IFERROR(INDEX(Aktivnost,SMALL(IF(Cilj=$D$2,ROW(Aktivnost)-MIN(ROW(Aktivnost))+1),ROWS($B$3:B75)))&CHAR(10),\"\")","v":""},null,{"$f":"IFERROR(INDEX(Aktivnost,SMALL(IF(Cilj=$F$2,ROW(Aktivnost)-MIN(ROW(Aktivnost))+1),ROWS($B$3:B75)))&CHAR(10),\"\")","v":""},null,{"$f":"IFERROR(INDEX(Aktivnost,SMALL(IF(Cilj=$H$2,ROW(Aktivnost)-MIN(ROW(Aktivnost))+1),ROWS($B$3:B75)))&CHAR(10),\"\")","v":""}]
[null,{"$f":"IFERROR(INDEX(Aktivnost,SMALL(IF(Cilj=$B$2,ROW(Aktivnost)-MIN(ROW(Aktivnost))+1),ROWS($B$3:B76)))&\" \"&CHAR(10)&(INDEX(Rezultat,SMALL(IF(Cilj=$B$2,ROW(Rezultat)-MIN(ROW(Rezultat))+1),ROWS($B$3:B76))))&CHAR(10),\"\")","v":""},null,{"$f":"IFERROR(INDEX(Aktivnost,SMALL(IF(Cilj=$D$2,ROW(Aktivnost)-MIN(ROW(Aktivnost))+1),ROWS($B$3:B76)))&CHAR(10),\"\")","v":""},null,{"$f":"IFERROR(INDEX(Aktivnost,SMALL(IF(Cilj=$F$2,ROW(Aktivnost)-MIN(ROW(Aktivnost))+1),ROWS($B$3:B76)))&CHAR(10),\"\")","v":""},null,{"$f":"IFERROR(INDEX(Aktivnost,SMALL(IF(Cilj=$H$2,ROW(Aktivnost)-MIN(ROW(Aktivnost))+1),ROWS($B$3:B76)))&CHAR(10),\"\")","v":""}]
[null,{"$f":"IFERROR(INDEX(Aktivnost,SMALL(IF(Cilj=$B$2,ROW(Aktivnost)-MIN(ROW(Aktivnost))+1),ROWS($B$3:B77)))&\" \"&CHAR(10)&(INDEX(Rezultat,SMALL(IF(Cilj=$B$2,ROW(Rezultat)-MIN(ROW(Rezultat))+1),ROWS($B$3:B77))))&CHAR(10),\"\")","v":""},null,{"$f":"IFERROR(INDEX(Aktivnost,SMALL(IF(Cilj=$D$2,ROW(Aktivnost)-MIN(ROW(Aktivnost))+1),ROWS($B$3:B77)))&CHAR(10),\"\")","v":""},null,{"$f":"IFERROR(INDEX(Aktivnost,SMALL(IF(Cilj=$F$2,ROW(Aktivnost)-MIN(ROW(Aktivnost))+1),ROWS($B$3:B77)))&CHAR(10),\"\")","v":""},null,{"$f":"IFERROR(INDEX(Aktivnost,SMALL(IF(Cilj=$H$2,ROW(Aktivnost)-MIN(ROW(Aktivnost))+1),ROWS($B$3:B77)))&CHAR(10),\"\")","v":""}]
[null,{"$f":"IFERROR(INDEX(Aktivnost,SMALL(IF(Cilj=$B$2,ROW(Aktivnost)-MIN(ROW(Aktivnost))+1),ROWS($B$3:B78)))&\" \"&CHAR(10)&(INDEX(Rezultat,SMALL(IF(Cilj=$B$2,ROW(Rezultat)-MIN(ROW(Rezultat))+1),ROWS($B$3:B78))))&CHAR(10),\"\")","v":""},null,{"$f":"IFERROR(INDEX(Aktivnost,SMALL(IF(Cilj=$D$2,ROW(Aktivnost)-MIN(ROW(Aktivnost))+1),ROWS($B$3:B78)))&CHAR(10),\"\")","v":""},null,{"$f":"IFERROR(INDEX(Aktivnost,SMALL(IF(Cilj=$F$2,ROW(Aktivnost)-MIN(ROW(Aktivnost))+1),ROWS($B$3:B78)))&CHAR(10),\"\")","v":""},null,{"$f":"IFERROR(INDEX(Aktivnost,SMALL(IF(Cilj=$H$2,ROW(Aktivnost)-MIN(ROW(Aktivnost))+1),ROWS($B$3:B78)))&CHAR(10),\"\")","v":""}]
[null,{"$f":"IFERROR(INDEX(Aktivnost,SMALL(IF(Cilj=$B$2,ROW(Aktivnost)-MIN(ROW(Aktivnost))+1),ROWS($B$3:B79)))&\" \"&CHAR(10)&(INDEX(Rezultat,SMALL(IF(Cilj=$B$2,ROW(Rezultat)-MIN(ROW(Rezultat))+1),ROWS($B$3:B79))))&CHAR(10),\"\")","v":""},null,{"$f":"IFERROR(INDEX(Aktivnost,SMALL(IF(Cilj=$D$2,ROW(Aktivnost)-MIN(ROW(Aktivnost))+1),ROWS($B$3:B79)))&CHAR(10),\"\")","v":""},null,{"$f":"IFERROR(INDEX(Aktivnost,SMALL(IF(Cilj=$F$2,ROW(Aktivnost)-MIN(ROW(Aktivnost))+1),ROWS($B$3:B79)))&CHAR(10),\"\")","v":""},null,{"$f":"IFERROR(INDEX(Aktivnost,SMALL(IF(Cilj=$H$2,ROW(Aktivnost)-MIN(ROW(Aktivnost))+1),ROWS($B$3:B79)))&CHAR(10),\"\")","v":""}]
[null,{"$f":"IFERROR(INDEX(Aktivnost,SMALL(IF(Cilj=$B$2,ROW(Aktivnost)-MIN(ROW(Aktivnost))+1),ROWS($B$3:B80)))&\" \"&CHAR(10)&(INDEX(Rezultat,SMALL(IF(Cilj=$B$2,ROW(Rezultat)-MIN(ROW(Rezultat))+1),ROWS($B$3:B80))))&CHAR(10),\"\")","v":""},null,{"$f":"IFERROR(INDEX(Aktivnost,SMALL(IF(Cilj=$D$2,ROW(Aktivnost)-MIN(ROW(Aktivnost))+1),ROWS($B$3:B80)))&CHAR(10),\"\")","v":""},null,{"$f":"IFERROR(INDEX(Aktivnost,SMALL(IF(Cilj=$F$2,ROW(Aktivnost)-MIN(ROW(Aktivnost))+1),ROWS($B$3:B80)))&CHAR(10),\"\")","v":""},null,{"$f":"IFERROR(INDEX(Aktivnost,SMALL(IF(Cilj=$H$2,ROW(Aktivnost)-MIN(ROW(Aktivnost))+1),ROWS($B$3:B80)))&CHAR(10),\"\")","v":""}]
[null,{"$f":"IFERROR(INDEX(Aktivnost,SMALL(IF(Cilj=$B$2,ROW(Aktivnost)-MIN(ROW(Aktivnost))+1),ROWS($B$3:B81)))&\" \"&CHAR(10)&(INDEX(Rezultat,SMALL(IF(Cilj=$B$2,ROW(Rezultat)-MIN(ROW(Rezultat))+1),ROWS($B$3:B81))))&CHAR(10),\"\")","v":""},null,{"$f":"IFERROR(INDEX(Aktivnost,SMALL(IF(Cilj=$D$2,ROW(Aktivnost)-MIN(ROW(Aktivnost))+1),ROWS($B$3:B81)))&CHAR(10),\"\")","v":""},null,{"$f":"IFERROR(INDEX(Aktivnost,SMALL(IF(Cilj=$F$2,ROW(Aktivnost)-MIN(ROW(Aktivnost))+1),ROWS($B$3:B81)))&CHAR(10),\"\")","v":""},null,{"$f":"IFERROR(INDEX(Aktivnost,SMALL(IF(Cilj=$H$2,ROW(Aktivnost)-MIN(ROW(Aktivnost))+1),ROWS($B$3:B81)))&CHAR(10),\"\")","v":""}]
[null,{"$f":"IFERROR(INDEX(Aktivnost,SMALL(IF(Cilj=$B$2,ROW(Aktivnost)-MIN(ROW(Aktivnost))+1),ROWS($B$3:B82)))&\" \"&CHAR(10)&(INDEX(Rezultat,SMALL(IF(Cilj=$B$2,ROW(Rezultat)-MIN(ROW(Rezultat))+1),ROWS($B$3:B82))))&CHAR(10),\"\")","v":""},null,{"$f":"IFERROR(INDEX(Aktivnost,SMALL(IF(Cilj=$D$2,ROW(Aktivnost)-MIN(ROW(Aktivnost))+1),ROWS($B$3:B82)))&CHAR(10),\"\")","v":""},null,{"$f":"IFERROR(INDEX(Aktivnost,SMALL(IF(Cilj=$F$2,ROW(Aktivnost)-MIN(ROW(Aktivnost))+1),ROWS($B$3:B82)))&CHAR(10),\"\")","v":""},null,{"$f":"IFERROR(INDEX(Aktivnost,SMALL(IF(Cilj=$H$2,ROW(Aktivnost)-MIN(ROW(Aktivnost))+1),ROWS($B$3:B82)))&CHAR(10),\"\")","v":""}]
[null,{"$f":"IFERROR(INDEX(Aktivnost,SMALL(IF(Cilj=$B$2,ROW(Aktivnost)-MIN(ROW(Aktivnost))+1),ROWS($B$3:B83)))&\" \"&CHAR(10)&(INDEX(Rezultat,SMALL(IF(Cilj=$B$2,ROW(Rezultat)-MIN(ROW(Rezultat))+1),ROWS($B$3:B83))))&CHAR(10),\"\")","v":""},null,{"$f":"IFERROR(INDEX(Aktivnost,SMALL(IF(Cilj=$D$2,ROW(Aktivnost)-MIN(ROW(Aktivnost))+1),ROWS($B$3:B83)))&CHAR(10),\"\")","v":""},null,{"$f":"IFERROR(INDEX(Aktivnost,SMALL(IF(Cilj=$F$2,ROW(Aktivnost)-MIN(ROW(Aktivnost))+1),ROWS($B$3:B83)))&CHAR(10),\"\")","v":""},null,{"$f":"IFERROR(INDEX(Aktivnost,SMALL(IF(Cilj=$H$2,ROW(Aktivnost)-MIN(ROW(Aktivnost))+1),ROWS($B$3:B83)))&CHAR(10),\"\")","v":""}]
[null,{"$f":"IFERROR(INDEX(Aktivnost,SMALL(IF(Cilj=$B$2,ROW(Aktivnost)-MIN(ROW(Aktivnost))+1),ROWS($B$3:B84)))&\" \"&CHAR(10)&(INDEX(Rezultat,SMALL(IF(Cilj=$B$2,ROW(Rezultat)-MIN(ROW(Rezultat))+1),ROWS($B$3:B84))))&CHAR(10),\"\")","v":""},null,{"$f":"IFERROR(INDEX(Aktivnost,SMALL(IF(Cilj=$D$2,ROW(Aktivnost)-MIN(ROW(Aktivnost))+1),ROWS($B$3:B84)))&CHAR(10),\"\")","v":""},null,{"$f":"IFERROR(INDEX(Aktivnost,SMALL(IF(Cilj=$F$2,ROW(Aktivnost)-MIN(ROW(Aktivnost))+1),ROWS($B$3:B84)))&CHAR(10),\"\")","v":""},null,{"$f":"IFERROR(INDEX(Aktivnost,SMALL(IF(Cilj=$H$2,ROW(Aktivnost)-MIN(ROW(Aktivnost))+1),ROWS($B$3:B84)))&CHAR(10),\"\")","v":""}]
[null,{"$f":"IFERROR(INDEX(Aktivnost,SMALL(IF(Cilj=$B$2,ROW(Aktivnost)-MIN(ROW(Aktivnost))+1),ROWS($B$3:B85)))&\" \"&CHAR(10)&(INDEX(Rezultat,SMALL(IF(Cilj=$B$2,ROW(Rezultat)-MIN(ROW(Rezultat))+1),ROWS($B$3:B85))))&CHAR(10),\"\")","v":""},null,{"$f":"IFERROR(INDEX(Aktivnost,SMALL(IF(Cilj=$D$2,ROW(Aktivnost)-MIN(ROW(Aktivnost))+1),ROWS($B$3:B85)))&CHAR(10),\"\")","v":""},null,{"$f":"IFERROR(INDEX(Aktivnost,SMALL(IF(Cilj=$F$2,ROW(Aktivnost)-MIN(ROW(Aktivnost))+1),ROWS($B$3:B85)))&CHAR(10),\"\")","v":""},null,{"$f":"IFERROR(INDEX(Aktivnost,SMALL(IF(Cilj=$H$2,ROW(Aktivnost)-MIN(ROW(Aktivnost))+1),ROWS($B$3:B85)))&CHAR(10),\"\")","v":""}]
[null,{"$f":"IFERROR(INDEX(Aktivnost,SMALL(IF(Cilj=$B$2,ROW(Aktivnost)-MIN(ROW(Aktivnost))+1),ROWS($B$3:B86)))&\" \"&CHAR(10)&(INDEX(Rezultat,SMALL(IF(Cilj=$B$2,ROW(Rezultat)-MIN(ROW(Rezultat))+1),ROWS($B$3:B86))))&CHAR(10),\"\")","v":""},null,{"$f":"IFERROR(INDEX(Aktivnost,SMALL(IF(Cilj=$D$2,ROW(Aktivnost)-MIN(ROW(Aktivnost))+1),ROWS($B$3:B86)))&CHAR(10),\"\")","v":""},null,{"$f":"IFERROR(INDEX(Aktivnost,SMALL(IF(Cilj=$F$2,ROW(Aktivnost)-MIN(ROW(Aktivnost))+1),ROWS($B$3:B86)))&CHAR(10),\"\")","v":""},null,{"$f":"IFERROR(INDEX(Aktivnost,SMALL(IF(Cilj=$H$2,ROW(Aktivnost)-MIN(ROW(Aktivnost))+1),ROWS($B$3:B86)))&CHAR(10),\"\")","v":""}]
[null,{"$f":"IFERROR(INDEX(Aktivnost,SMALL(IF(Cilj=$B$2,ROW(Aktivnost)-MIN(ROW(Aktivnost))+1),ROWS($B$3:B87)))&\" \"&CHAR(10)&(INDEX(Rezultat,SMALL(IF(Cilj=$B$2,ROW(Rezultat)-MIN(ROW(Rezultat))+1),ROWS($B$3:B87))))&CHAR(10),\"\")","v":""},null,{"$f":"IFERROR(INDEX(Aktivnost,SMALL(IF(Cilj=$D$2,ROW(Aktivnost)-MIN(ROW(Aktivnost))+1),ROWS($B$3:B87)))&CHAR(10),\"\")","v":""},null,{"$f":"IFERROR(INDEX(Aktivnost,SMALL(IF(Cilj=$F$2,ROW(Aktivnost)-MIN(ROW(Aktivnost))+1),ROWS($B$3:B87)))&CHAR(10),\"\")","v":""},null,{"$f":"IFERROR(INDEX(Aktivnost,SMALL(IF(Cilj=$H$2,ROW(Aktivnost)-MIN(ROW(Aktivnost))+1),ROWS($B$3:B87)))&CHAR(10),\"\")","v":""}]
[null,{"$f":"IFERROR(INDEX(Aktivnost,SMALL(IF(Cilj=$B$2,ROW(Aktivnost)-MIN(ROW(Aktivnost))+1),ROWS($B$3:B88)))&\" \"&CHAR(10)&(INDEX(Rezultat,SMALL(IF(Cilj=$B$2,ROW(Rezultat)-MIN(ROW(Rezultat))+1),ROWS($B$3:B88))))&CHAR(10),\"\")","v":""},null,{"$f":"IFERROR(INDEX(Aktivnost,SMALL(IF(Cilj=$D$2,ROW(Aktivnost)-MIN(ROW(Aktivnost))+1),ROWS($B$3:B88)))&CHAR(10),\"\")","v":""},null,{"$f":"IFERROR(INDEX(Aktivnost,SMALL(IF(Cilj=$F$2,ROW(Aktivnost)-MIN(ROW(Aktivnost))+1),ROWS($B$3:B88)))&CHAR(10),\"\")","v":""},null,{"$f":"IFERROR(INDEX(Aktivnost,SMALL(IF(Cilj=$H$2,ROW(Aktivnost)-MIN(ROW(Aktivnost))+1),ROWS($B$3:B88)))&CHAR(10),\"\")","v":""}]
[null,{"$f":"IFERROR(INDEX(Aktivnost,SMALL(IF(Cilj=$B$2,ROW(Aktivnost)-MIN(ROW(Aktivnost))+1),ROWS($B$3:B89)))&\" \"&CHAR(10)&(INDEX(Rezultat,SMALL(IF(Cilj=$B$2,ROW(Rezultat)-MIN(ROW(Rezultat))+1),ROWS($B$3:B89))))&CHAR(10),\"\")","v":""},null,{"$f":"IFERROR(INDEX(Aktivnost,SMALL(IF(Cilj=$D$2,ROW(Aktivnost)-MIN(ROW(Aktivnost))+1),ROWS($B$3:B89)))&CHAR(10),\"\")","v":""},null,{"$f":"IFERROR(INDEX(Aktivnost,SMALL(IF(Cilj=$F$2,ROW(Aktivnost)-MIN(ROW(Aktivnost))+1),ROWS($B$3:B89)))&CHAR(10),\"\")","v":""},null,{"$f":"IFERROR(INDEX(Aktivnost,SMALL(IF(Cilj=$H$2,ROW(Aktivnost)-MIN(ROW(Aktivnost))+1),ROWS($B$3:B89)))&CHAR(10),\"\")","v":""}]
[null,{"$f":"IFERROR(INDEX(Aktivnost,SMALL(IF(Cilj=$B$2,ROW(Aktivnost)-MIN(ROW(Aktivnost))+1),ROWS($B$3:B90)))&\" \"&CHAR(10)&(INDEX(Rezultat,SMALL(IF(Cilj=$B$2,ROW(Rezultat)-MIN(ROW(Rezultat))+1),ROWS($B$3:B90))))&CHAR(10),\"\")","v":""},null,{"$f":"IFERROR(INDEX(Aktivnost,SMALL(IF(Cilj=$D$2,ROW(Aktivnost)-MIN(ROW(Aktivnost))+1),ROWS($B$3:B90)))&CHAR(10),\"\")","v":""},null,{"$f":"IFERROR(INDEX(Aktivnost,SMALL(IF(Cilj=$F$2,ROW(Aktivnost)-MIN(ROW(Aktivnost))+1),ROWS($B$3:B90)))&CHAR(10),\"\")","v":""},null,{"$f":"IFERROR(INDEX(Aktivnost,SMALL(IF(Cilj=$H$2,ROW(Aktivnost)-MIN(ROW(Aktivnost))+1),ROWS($B$3:B90)))&CHAR(10),\"\")","v":""}]
[null,{"$f":"IFERROR(INDEX(Aktivnost,SMALL(IF(Cilj=$B$2,ROW(Aktivnost)-MIN(ROW(Aktivnost))+1),ROWS($B$3:B91)))&\" \"&CHAR(10)&(INDEX(Rezultat,SMALL(IF(Cilj=$B$2,ROW(Rezultat)-MIN(ROW(Rezultat))+1),ROWS($B$3:B91))))&CHAR(10),\"\")","v":""},null,{"$f":"IFERROR(INDEX(Aktivnost,SMALL(IF(Cilj=$D$2,ROW(Aktivnost)-MIN(ROW(Aktivnost))+1),ROWS($B$3:B91)))&CHAR(10),\"\")","v":""},null,{"$f":"IFERROR(INDEX(Aktivnost,SMALL(IF(Cilj=$F$2,ROW(Aktivnost)-MIN(ROW(Aktivnost))+1),ROWS($B$3:B91)))&CHAR(10),\"\")","v":""},null,{"$f":"IFERROR(INDEX(Aktivnost,SMALL(IF(Cilj=$H$2,ROW(Aktivnost)-MIN(ROW(Aktivnost))+1),ROWS($B$3:B91)))&CHAR(10),\"\")","v":""}]
[null,{"$f":"IFERROR(INDEX(Aktivnost,SMALL(IF(Cilj=$B$2,ROW(Aktivnost)-MIN(ROW(Aktivnost))+1),ROWS($B$3:B92)))&\" \"&CHAR(10)&(INDEX(Rezultat,SMALL(IF(Cilj=$B$2,ROW(Rezultat)-MIN(ROW(Rezultat))+1),ROWS($B$3:B92))))&CHAR(10),\"\")","v":""},null,{"$f":"IFERROR(INDEX(Aktivnost,SMALL(IF(Cilj=$D$2,ROW(Aktivnost)-MIN(ROW(Aktivnost))+1),ROWS($B$3:B92)))&CHAR(10),\"\")","v":""},null,{"$f":"IFERROR(INDEX(Aktivnost,SMALL(IF(Cilj=$F$2,ROW(Aktivnost)-MIN(ROW(Aktivnost))+1),ROWS($B$3:B92)))&CHAR(10),\"\")","v":""},null,{"$f":"IFERROR(INDEX(Aktivnost,SMALL(IF(Cilj=$H$2,ROW(Aktivnost)-MIN(ROW(Aktivnost))+1),ROWS($B$3:B92)))&CHAR(10),\"\")","v":""}]
[null,{"$f":"IFERROR(INDEX(Aktivnost,SMALL(IF(Cilj=$B$2,ROW(Aktivnost)-MIN(ROW(Aktivnost))+1),ROWS($B$3:B93)))&\" \"&CHAR(10)&(INDEX(Rezultat,SMALL(IF(Cilj=$B$2,ROW(Rezultat)-MIN(ROW(Rezultat))+1),ROWS($B$3:B93))))&CHAR(10),\"\")","v":""},null,{"$f":"IFERROR(INDEX(Aktivnost,SMALL(IF(Cilj=$D$2,ROW(Aktivnost)-MIN(ROW(Aktivnost))+1),ROWS($B$3:B93)))&CHAR(10),\"\")","v":""},null,{"$f":"IFERROR(INDEX(Aktivnost,SMALL(IF(Cilj=$F$2,ROW(Aktivnost)-MIN(ROW(Aktivnost))+1),ROWS($B$3:B93)))&CHAR(10),\"\")","v":""},null,{"$f":"IFERROR(INDEX(Aktivnost,SMALL(IF(Cilj=$H$2,ROW(Aktivnost)-MIN(ROW(Aktivnost))+1),ROWS($B$3:B93)))&CHAR(10),\"\")","v":""}]
[null,{"$f":"IFERROR(INDEX(Aktivnost,SMALL(IF(Cilj=$B$2,ROW(Aktivnost)-MIN(ROW(Aktivnost))+1),ROWS($B$3:B94)))&\" \"&CHAR(10)&(INDEX(Rezultat,SMALL(IF(Cilj=$B$2,ROW(Rezultat)-MIN(ROW(Rezultat))+1),ROWS($B$3:B94))))&CHAR(10),\"\")","v":""},null,{"$f":"IFERROR(INDEX(Aktivnost,SMALL(IF(Cilj=$D$2,ROW(Aktivnost)-MIN(ROW(Aktivnost))+1),ROWS($B$3:B94)))&CHAR(10),\"\")","v":""},null,{"$f":"IFERROR(INDEX(Aktivnost,SMALL(IF(Cilj=$F$2,ROW(Aktivnost)-MIN(ROW(Aktivnost))+1),ROWS($B$3:B94)))&CHAR(10),\"\")","v":""},null,{"$f":"IFERROR(INDEX(Aktivnost,SMALL(IF(Cilj=$H$2,ROW(Aktivnost)-MIN(ROW(Aktivnost))+1),ROWS($B$3:B94)))&CHAR(10),\"\")","v":""}]
[null,{"$f":"IFERROR(INDEX(Aktivnost,SMALL(IF(Cilj=$B$2,ROW(Aktivnost)-MIN(ROW(Aktivnost))+1),ROWS($B$3:B95)))&\" \"&CHAR(10)&(INDEX(Rezultat,SMALL(IF(Cilj=$B$2,ROW(Rezultat)-MIN(ROW(Rezultat))+1),ROWS($B$3:B95))))&CHAR(10),\"\")","v":""},null,{"$f":"IFERROR(INDEX(Aktivnost,SMALL(IF(Cilj=$D$2,ROW(Aktivnost)-MIN(ROW(Aktivnost))+1),ROWS($B$3:B95)))&CHAR(10),\"\")","v":""},null,{"$f":"IFERROR(INDEX(Aktivnost,SMALL(IF(Cilj=$F$2,ROW(Aktivnost)-MIN(ROW(Aktivnost))+1),ROWS($B$3:B95)))&CHAR(10),\"\")","v":""},null,{"$f":"IFERROR(INDEX(Aktivnost,SMALL(IF(Cilj=$H$2,ROW(Aktivnost)-MIN(ROW(Aktivnost))+1),ROWS($B$3:B95)))&CHAR(10),\"\")","v":""}]
[null,{"$f":"IFERROR(INDEX(Aktivnost,SMALL(IF(Cilj=$B$2,ROW(Aktivnost)-MIN(ROW(Aktivnost))+1),ROWS($B$3:B96)))&\" \"&CHAR(10)&(INDEX(Rezultat,SMALL(IF(Cilj=$B$2,ROW(Rezultat)-MIN(ROW(Rezultat))+1),ROWS($B$3:B96))))&CHAR(10),\"\")","v":""},null,{"$f":"IFERROR(INDEX(Aktivnost,SMALL(IF(Cilj=$D$2,ROW(Aktivnost)-MIN(ROW(Aktivnost))+1),ROWS($B$3:B96)))&CHAR(10),\"\")","v":""},null,{"$f":"IFERROR(INDEX(Aktivnost,SMALL(IF(Cilj=$F$2,ROW(Aktivnost)-MIN(ROW(Aktivnost))+1),ROWS($B$3:B96)))&CHAR(10),\"\")","v":""},null,{"$f":"IFERROR(INDEX(Aktivnost,SMALL(IF(Cilj=$H$2,ROW(Aktivnost)-MIN(ROW(Aktivnost))+1),ROWS($B$3:B96)))&CHAR(10),\"\")","v":""}]
[null,{"$f":"IFERROR(INDEX(Aktivnost,SMALL(IF(Cilj=$B$2,ROW(Aktivnost)-MIN(ROW(Aktivnost))+1),ROWS($B$3:B97)))&\" \"&CHAR(10)&(INDEX(Rezultat,SMALL(IF(Cilj=$B$2,ROW(Rezultat)-MIN(ROW(Rezultat))+1),ROWS($B$3:B97))))&CHAR(10),\"\")","v":""},null,{"$f":"IFERROR(INDEX(Aktivnost,SMALL(IF(Cilj=$D$2,ROW(Aktivnost)-MIN(ROW(Aktivnost))+1),ROWS($B$3:B97)))&CHAR(10),\"\")","v":""},null,{"$f":"IFERROR(INDEX(Aktivnost,SMALL(IF(Cilj=$F$2,ROW(Aktivnost)-MIN(ROW(Aktivnost))+1),ROWS($B$3:B97)))&CHAR(10),\"\")","v":""},null,{"$f":"IFERROR(INDEX(Aktivnost,SMALL(IF(Cilj=$H$2,ROW(Aktivnost)-MIN(ROW(Aktivnost))+1),ROWS($B$3:B97)))&CHAR(10),\"\")","v":""}]
[null,{"$f":"IFERROR(INDEX(Aktivnost,SMALL(IF(Cilj=$B$2,ROW(Aktivnost)-MIN(ROW(Aktivnost))+1),ROWS($B$3:B98)))&\" \"&CHAR(10)&(INDEX(Rezultat,SMALL(IF(Cilj=$B$2,ROW(Rezultat)-MIN(ROW(Rezultat))+1),ROWS($B$3:B98))))&CHAR(10),\"\")","v":""},null,{"$f":"IFERROR(INDEX(Aktivnost,SMALL(IF(Cilj=$D$2,ROW(Aktivnost)-MIN(ROW(Aktivnost))+1),ROWS($B$3:B98)))&CHAR(10),\"\")","v":""},null,{"$f":"IFERROR(INDEX(Aktivnost,SMALL(IF(Cilj=$F$2,ROW(Aktivnost)-MIN(ROW(Aktivnost))+1),ROWS($B$3:B98)))&CHAR(10),\"\")","v":""},null,{"$f":"IFERROR(INDEX(Aktivnost,SMALL(IF(Cilj=$H$2,ROW(Aktivnost)-MIN(ROW(Aktivnost))+1),ROWS($B$3:B98)))&CHAR(10),\"\")","v":""}]
[null,{"$f":"IFERROR(INDEX(Aktivnost,SMALL(IF(Cilj=$B$2,ROW(Aktivnost)-MIN(ROW(Aktivnost))+1),ROWS($B$3:B99)))&\" \"&CHAR(10)&(INDEX(Rezultat,SMALL(IF(Cilj=$B$2,ROW(Rezultat)-MIN(ROW(Rezultat))+1),ROWS($B$3:B99))))&CHAR(10),\"\")","v":""},null,{"$f":"IFERROR(INDEX(Aktivnost,SMALL(IF(Cilj=$D$2,ROW(Aktivnost)-MIN(ROW(Aktivnost))+1),ROWS($B$3:B99)))&CHAR(10),\"\")","v":""},null,{"$f":"IFERROR(INDEX(Aktivnost,SMALL(IF(Cilj=$F$2,ROW(Aktivnost)-MIN(ROW(Aktivnost))+1),ROWS($B$3:B99)))&CHAR(10),\"\")","v":""},null,{"$f":"IFERROR(INDEX(Aktivnost,SMALL(IF(Cilj=$H$2,ROW(Aktivnost)-MIN(ROW(Aktivnost))+1),ROWS($B$3:B99)))&CHAR(10),\"\")","v":""}]
[null,{"$f":"IFERROR(INDEX(Aktivnost,SMALL(IF(Cilj=$B$2,ROW(Aktivnost)-MIN(ROW(Aktivnost))+1),ROWS($B$3:B100)))&\" \"&CHAR(10)&(INDEX(Rezultat,SMALL(IF(Cilj=$B$2,ROW(Rezultat)-MIN(ROW(Rezultat))+1),ROWS($B$3:B100))))&CHAR(10),\"\")","v":""},null,{"$f":"IFERROR(INDEX(Aktivnost,SMALL(IF(Cilj=$D$2,ROW(Aktivnost)-MIN(ROW(Aktivnost))+1),ROWS($B$3:B100)))&CHAR(10),\"\")","v":""},null,{"$f":"IFERROR(INDEX(Aktivnost,SMALL(IF(Cilj=$F$2,ROW(Aktivnost)-MIN(ROW(Aktivnost))+1),ROWS($B$3:B100)))&CHAR(10),\"\")","v":""},null,{"$f":"IFERROR(INDEX(Aktivnost,SMALL(IF(Cilj=$H$2,ROW(Aktivnost)-MIN(ROW(Aktivnost))+1),ROWS($B$3:B100)))&CHAR(10),\"\")","v":""}]

{"sheet":"Osnovni podaci","index":2,"n_rows":6,"n_cols":1,"rows_kept":6}
["Osnovni podaci o ovoj radnoj svesci"]
["Vodič za čitače ekrana"]
["U ovoj radnoj svesci postoje 3 radna lista. \n\nPodaci plana\nAgilni plan\nOsnovni podaci\n\nUputstva za svaki radni list se nalaze u koloni A, počevši od ćelije A1 za svaki radni list. Napisana su pomoću skrivenog teksta. Svaki korak vas vodi kroz informacije u tom redu. Svaki naredni korak se nastavlja u ćelijama A2, A3 i tako dalje, osim ako je izričito drugačije navedeno. Na primer, tekst uputstva može da navodi „nastavite do ćelije A6“ da biste videli sledeći korak. \n\nSkriveni tekst se neće odštampati.\n\nDa biste uklonili ova uputstva iz bilo kog radnog lista, jednostavno izbrišite kolonu A.\n"]
["Osnovni podaci o ovoj radnoj svesci"]
["Unesite informacije o kontrolnoj tački u radni list „Podaci plana“.  Obavezno sortirajte po prioritetu nakon kod ide kontrolna tačka da biste snimili prikaz stavki Dovršeno, Trenutno, Blizu termina i Buduće opadajućim prioritetom, tako da stavke najvišeg prioriteta budu prikazana na vrhu. Plan u ranom listu „Agilni plan“ ažurira se automatski.\n"]
["Ovo je poslednje uputstvo u ovom radnom listu."]